Cogmind - Beta 10.2 @@@ ROGUE MODE // 2020.12.14 @ 20:34:42 Player: Boris Result: Destroyed by S-43 Plague with Heavy Machine Gun Performance ------------- Evolutions (9) 4500 Regions Visited (32) 6400 Robots Destroyed (538) 2690 Value Destroyed (31022) 31022 Prototype IDs (77) 1540 Alien Tech Used (13) 2600 Bonus (18551) 18551 TOTAL SCORE: 67303 Bonus ------- High Alert Combat Kills 11552 Follower Combat Kills 2506 Entered Garrisons 1400 Used RIF Installer 3500 Network Hubs Disabled 400 Aligned with FarCom 300 Built Enhanced Grunts 300 Hacked Protovariant 500 Scanned by Researcher 500 Friendly Fire -2407 Cogmind --------- Core Integrity 0/1600 Matter 64/300 Energy 100/100 System Corruption 6% Temperature Cool (0) Movement Core (100) Ox1 Location -1/Access Parts ------- > --- POWER (2) -------- (None) > --- PROPULSION (5) --- (None) > --- UTILITY (14) ----- (None) > --- WEAPON (4) ------- Z-bomb Delivery System > --- INVENTORY (4) ---- (None) Peak State ------------ > --- POWER ------------ Light Particle Reactor Improved Quantum Reactor > --- PROPULSION ------- Myomer Leg Biometal Leg Biometal Leg Enhanced Biometal Leg Enhanced Biometal Leg > --- UTILITY ---------- Large Storage Unit Large Storage Unit High-capacity Storage Unit Experimental Optical Array Experimental Targeting Computer SHELL Armor Experimental Hardlight Generator Improved Hacking Suite Improved Hacking Suite Improved Hacking Suite Improved System Shield Relay Coupler [NC] > --- WEAPON ----------- Null Cannon Mini Smartbomb Launcher Z-bomb Delivery System Nanosword > --- INVENTORY -------- Micro Fission Core Improved Quantum Reactor Advanced Cooling System Experimental Coolant Injector Experimental Coolant Injector Experimental Energy Well Advanced Matter Compressor Experimental Matter Compressor Advanced Armor Integrity Analyzer Matter Filter Centrium Medium Armor Plating System Purifier Trap Reconfigurator Integrity Redistributor Terrabomb Terrabomb Core Cannon Helical Railgun Tiamat Missile Launcher Sigix Terminator Advanced Remote Datajack Deploy-a-Sentry [Rating: 201] Favorites ----------- Power Quantum Reactor Engine Cooled Ion Engine Power Core Micro Fission Core Reactor Quantum Reactor Propulsion Armored Wheel Treads Advanced Medium Treads Leg Improved Titanium Leg Wheel Armored Wheel Hover Unit Improved Antigrav System Utility High-capacity Storage Unit Device Experimental Sensor Array Storage High-capacity Storage Unit Processor Advanced Signal Interpreter Hackware Relay Coupler [Sentry] Protection Centrium Medium Armor Plating Artifact Phase Redirector Weapon Hypercooled Linear Accelerator Energy Gun Advanced Beam Rifle Energy Cannon EMDS Ballistic Gun Gauss Rifle Ballistic Cannon Hypercooled Linear Accelerator Launcher Mini Grenade Launcher Special Weapon Remote Datajack Slashing Weapon Nanosword Build | -11 -10 -10 -9 -9 -9 -8 -8 -8 -8 -8 -7 -7 -6 -6 -6 -6 -5 -5 -5 -5 -5 -5 -5 -5 -4 -4 -3 -3 -2 -2 -2 -1 ------- Run | Scr Mat Min Mat Min Exi Min Mat Gar Mat Gar Fac Gar Fac Gar Fac Gar Fac Was Fac Ext Cet Arc Hub Gar Fac Gar Res Qua Res Tes Sec Acc Slots Evolved 18 | . . . 2 . . . 2 . . . 2 . 2 . . . 2 . . . . . . . 2 . 2 . 2 . . 2 Power 1 | . . . . . . . . . . . . . . . . . . . . . . . . . 1 . . . . . . . Propulsion 3 | . . . . . . . 1 . . . . . 1 . . . . . . . . . . . . . . . . . . 1 Utility 12 | . . . 1 . . . 1 . . . 2 . 1 . . . 2 . . . . . . . 1 . 1 . 2 . . 1 Weapon 2 | . . . 1 . . . . . . . . . . . . . . . . . . . . . . . 1 . . . . . Parts Attached 717 | 7 11 19 18 4 37 7 29 12 6 17 3 21 19 11 21 13 15 15 12 36 12 9 46 16 7 30 14 58 35 55 77 25 Power 32 | 1 1 2 2 . 1 . 2 . . . . 2 . . 1 . . 3 . . 1 . 1 1 1 1 . 4 . 4 3 1 Engine 10 | 1 1 2 2 . 1 . 2 . . . . 1 . . . . . . . . . . . . . . . . . . . . Core 4 | . . . . . . . . . . . . 1 . . . . . 1 . . . . . . 1 . . . . . 1 . Reactor 18 | . . . . . . . . . . . . . . . 1 . . 2 . . 1 . 1 1 . 1 . 4 . 4 2 1 Propulsion 80 | 2 1 2 2 1 11 1 11 . . 4 . 5 1 . 1 3 . 3 . . . . 1 2 . 6 1 7 2 1 8 4 Treads 25 | 1 . . 2 1 3 . 1 . . . . . . . . . . 3 . . . . 1 2 . 1 . 7 2 1 . . Leg 22 | . . . . . 3 1 8 . . . . . . . . . . . . . . . . . . . . . . . 6 4 Wheel 30 | 1 1 2 . . 4 . 2 . . 4 . 5 1 . 1 3 . . . . . . . . . 5 1 . . . . . Hover 3 | . . . . . 1 . . . . . . . . . . . . . . . . . . . . . . . . . 2 . Flight . | . . . . . . . . . . . . . . . . . . . . . . . . . . . . . . . . . Utility 266 | 2 3 . 3 . 12 1 5 . . 4 2 2 6 3 9 3 5 6 7 10 5 5 31 3 4 10 6 29 20 18 39 13 Device 178 | . . . . . 4 1 4 . . 2 1 1 4 2 6 . 3 4 6 8 4 5 25 1 4 6 2 16 16 13 35 5 Storage 17 | 2 2 . . . 2 . . . . 2 . 1 . . . . . 1 . . . . . 2 . 1 . 1 2 . 1 . Processor 8 | . . . . . 1 . . . . . 1 . . . . . 1 . . . . . 1 . . . . 1 . . 1 2 Hackware 22 | . . . . . . . . . . . . . 2 1 3 3 1 . 1 . . . 1 . . 3 3 . 1 . . 3 Protection 39 | . 1 . 3 . 5 . 1 . . . . . . . . . . 1 . 2 1 . 4 . . . 1 9 1 5 2 3 Artifact 2 | . . . . . . . . . . . . . . . . . . . . . . . . . . . . 2 . . . . Weapon 339 | 2 6 15 11 3 13 5 11 12 6 9 1 12 12 8 10 7 10 3 5 26 6 4 13 10 2 13 7 18 13 32 27 7 Energy Gun 29 | 1 . 2 3 2 2 2 7 5 3 . . . 1 . . . . . . . . 1 . . . . . . . . . . Energy Cannon 55 | . 4 . . . . . . . . 1 . . 1 . . . . . 1 6 2 . 2 2 1 2 . 10 2 10 8 3 Ballistic Gun 106 | 1 . 8 6 . 9 2 2 2 . 5 . 10 5 1 4 4 7 2 2 8 3 1 5 4 1 4 4 1 3 . 1 1 Ballistic Cannon 28 | . . . . . . . . . . . . . . . . . . . . . . . 1 1 . . 1 3 6 8 8 . Launcher 57 | . 2 5 2 1 2 1 2 5 3 2 . 1 1 3 1 1 . . . 3 1 . 2 3 . 2 . 1 . 7 3 3 Special Weapon 36 | . . . . . . . . . . . . . 1 3 3 1 2 1 2 6 . 1 2 . . 2 1 1 2 5 3 . Impact Weapon . | . . . . . . . . . . . . . . . . . . . . . . . . . . . . . . . . . Slashing Weapon 28 | . . . . . . . . . . 1 1 1 3 1 2 1 1 . . 3 . 1 1 . . 3 1 2 . 2 4 . Piercing Weapon . | . . . . . . . . . . . . . . . . . . . . . . . . . . . . . . . . . Special Melee Weapon . | . . . . . . . . . . . . . . . . . . . . . . . . . . . . . . . . . Unidentified Prototypes 46 | . . . . . 3 . . . . . . . 3 . . . . 1 . 1 2 . 5 . 1 . . 12 1 6 10 1 Parts Lost 64 | . . 2 12 . . 5 3 . . 1 . 2 . . . . . . . . . . . 2 . 8 3 3 . 2 17 4 Power 9 | . . 1 1 . . . 1 . . . . 1 . . . . . . . . . . . . . 1 . . . 1 3 . Propulsion 15 | . . . 2 . . 1 1 . . . . 1 . . . . . . . . . . . 1 . 3 1 . . . 5 . Utility 16 | . . . 2 . . 1 . . . . . . . . . . . . . . . . . 1 . 2 2 1 . . 4 3 Weapon 24 | . . 1 7 . . 3 1 . . 1 . . . . . . . . . . . . . . . 2 . 2 . 1 5 1 Highest Loss Streak 5 | . . 2 5 . . 4 1 . . 1 . 2 . . . . . . . . . . . 2 . 5 2 1 . 1 4 4 Average Slot Usage (%) 92 | . 99 99 95 100 95 93 93 100 100 98 100 99 99 99 99 99 98 96 88 88 87 87 84 86 91 88 91 93 90 88 84 89 Engine 3 | . 14 13 10 11 11 11 8 9 9 9 7 4 6 6 1 . . . . . . . . . . . . . . . . . Reactor 3 | . . . . . . . . . . . . . . . 4 6 5 5 5 5 5 5 5 5 5 4 4 7 8 7 6 7 Treads 7 | . 14 11 7 22 8 . . . . . . . . . . . . 2 11 11 11 11 11 11 15 7 . 6 13 12 7 . Leg 3 | . . . . . 3 2 24 27 27 10 . . . . . . . . . . . . . . . . . . . . 5 18 Wheel 7 | . 14 16 14 . 10 18 1 . . 16 23 22 26 26 26 26 23 16 . . . . . . . 8 19 12 . . . . Device 5 | . . . . . 1 1 12 9 9 8 7 7 8 2 4 . 8 8 6 4 5 10 11 5 9 9 5 6 6 7 6 6 Storage 21 | . 21 28 22 22 20 22 18 18 18 24 30 30 26 26 26 26 23 22 23 23 23 23 23 33 31 26 22 19 16 17 17 11 Processor 4 | . . . . . 1 . . . . . 7 7 6 6 6 6 5 11 11 11 11 11 8 5 5 5 4 4 4 4 4 8 Hackware 7 | . . . . . . . . . . . . . 2 9 8 13 12 6 9 11 11 5 2 . . 4 14 15 16 16 13 16 Protection 4 | . 6 . 10 11 8 8 2 9 9 3 . . . . . . . . . . . . 2 5 5 5 2 5 8 6 4 3 Energy Gun 4 | . 1 18 16 20 12 8 24 25 25 1 . . . . . . . . . . . . . . . . . . . . . . Energy Cannon 2 | . 11 . . . . . . . . 5 . . . . . . . . 1 2 6 . 1 2 5 7 4 6 4 4 3 3 Ballistic Gun 6 | . 14 7 14 1 14 20 . . . 5 21 19 13 14 16 15 10 13 11 7 9 11 7 9 8 . 2 . 2 . . . Ballistic Cannon 1 | . . . . . . . . . . . . . . . . . . . . . . . . 2 . . . 2 5 5 5 . Launcher 1 | . . 1 . 11 2 . . 1 1 6 . . . . . . . . . . . . 1 . . . . . . . 1 7 Slashing Weapon 1 | . . . . . . . . . . 8 1 3 5 1 1 2 1 . . 1 . 4 2 . . 1 2 1 . . 3 3 Naked Turns 5 | . . . . . . . . . . . . . . . . . . . . . . . . . . . . . . . . 5 Heaviest Build 235 | 14 73 77 82 77 87 84 85 85 85 116 117 117 119 124 121 121 126 128 133 135 138 137 186 167 171 171 166 198 220 224 235 190 Greatest Support 151 | 20 20 26 40 40 60 20 60 60 60 60 36 36 48 48 48 48 48 140 140 140 140 140 140 140 116 116 48 125 130 130 130 151 Greatest Overweight (x) 44 | 1 4 4 7 1 5 8 8 1 1 7 3 4 2 2 2 2 2 5 . . . 44 1 2 1 13 4 8 1 1 5 2 Average Overweight (x) 1 | . 2 3 2 1 2 4 1 1 1 1 3 3 2 2 2 2 2 1 . . . 4 . 1 1 2 3 2 1 1 1 . Largest Inventory Capacity 38 | 8 20 20 20 20 20 20 20 20 20 32 32 32 32 32 32 32 32 32 32 32 32 32 32 32 32 38 32 32 32 32 32 32 Average Capacity 27 | 5 14 20 20 20 18 20 20 20 20 24 32 32 32 32 32 32 32 31 32 32 32 32 32 32 32 32 32 32 31 32 32 23 Most Carried 32 | 4 20 20 20 20 20 20 20 20 20 31 30 32 32 32 32 32 32 32 32 32 32 32 32 32 32 32 32 32 32 32 32 32 Average Carried 27 | 2 12 19 18 19 17 19 19 19 20 23 29 31 31 31 31 30 31 31 32 31 32 31 30 31 31 31 31 31 31 31 30 23 Final Capacity 32 | 8 20 20 20 20 20 20 20 20 20 32 32 32 32 32 32 32 32 32 32 32 32 32 32 32 32 32 32 32 32 32 32 4 Final Carried 32 | 4 20 20 19 20 20 19 20 20 20 31 30 32 31 31 32 32 31 32 32 32 32 32 32 32 32 32 29 32 32 31 32 . Class Distribution -------------------- 34% | Scavenger-Mutant 16% | Hauler-Mutant 11% | Botlord-Mutant 10% | Bothacker-Mutant 9% | Scavenger-Tank 5% | Hauler-Tank Dominant Class ---------------- Mutant | -10/Materials Hauler-Mutant | -10/Mines Scavenger-Tank | -9/Materials Hauler-Mutant | -9/Mines Hauler-Mutant | -9/Exiles Hauler-Mutant | -8/Mines Hauler-Gunner | -8/Materials Hauler-Mutant | -8/Garrison Hauler-Tank | -8/Materials Scavenger-Mutant | -8/Garrison Scavenger-Skirmisher | -7/Factory Scavenger-Mutant | -7/Garrison Bothacker-Mutant | -6/Factory Bothacker-Mutant | -6/Garrison Botlord-Mutant | -6/Factory Botlord-Mutant | -6/Garrison Botlord-Mutant | -5/Factory Botlord-Mutant | -5/Waste Bothacker-Mutant | -5/Factory Bothacker-Mutant | -5/Extension Bothacker-Mutant | -5/Cetus Scavenger-Mutant | -5/Archives Scavenger-Mutant | -5/Hub_04(d) Scavenger-Tank | -5/Garrison Scavenger-Skirmisher | -4/Factory Scavenger-Mutant | -4/Garrison Botlord-Mutant | -3/Research Scavenger-Tank | -3/Quarantine Scavenger-Mutant | -2/Research Botlord-Mutant | -2/Testing Scavenger-Mutant | -2/Section 7 Scavenger-Mutant | -1/Access Resources | -11 -10 -10 -9 -9 -9 -8 -8 -8 -8 -8 -7 -7 -6 -6 -6 -6 -5 -5 -5 -5 -5 -5 -5 -5 -4 -4 -3 -3 -2 -2 -2 -1 ----------- Run | Scr Mat Min Mat Min Exi Min Mat Gar Mat Gar Fac Gar Fac Gar Fac Gar Fac Was Fac Ext Cet Arc Hub Gar Fac Gar Res Qua Res Tes Sec Acc Matter Collected 22471 | 276 277 334 387 102 514 280 237 418 144 408 30 552 237 196 523 729 223 686 35 939 200 110 1740 608 200 1197 411 2277 1527 1346 3907 1421 Remotely 682 | . . . . . . . . . . . . . . . . . . . . . . . 571 111 . . . . . . . . Salvage Created 25878 | 98 291 214 444 186 450 484 831 428 474 848 48 993 345 165 351 618 22 1606 57 265 181 405 3094 1078 375 1534 300 1234 2065 1632 3835 927 Parts 1192 | 3 22 24 28 11 63 20 36 48 31 44 1 44 9 18 9 19 1 28 6 10 7 26 154 33 10 56 10 92 96 41 155 37 Haulers Intercepted 12 | . 2 . 2 . . . 3 . 2 . . . 1 . . . . . . . . . . . . . . . 2 . . . Recyclers Shooed 4 | . . . 2 . . . 1 . . . . . . . . . . . . . . . . . . . . . . . . 1 Parts Field Recycled . | . . . . . . . . . . . . . . . . . . . . . . . . . . . . . . . . . Retrieved Matter . | . . . . . . . . . . . . . . . . . . . . . . . . . . . . . . . . . Parts Self-Destructed . | . . . . . . . . . . . . . . . . . . . . . . . . . . . . . . . . . Prevented . | . . . . . . . . . . . . . . . . . . . . . . . . . . . . . . . . . Kills | -11 -10 -10 -9 -9 -9 -8 -8 -8 -8 -8 -7 -7 -6 -6 -6 -6 -5 -5 -5 -5 -5 -5 -5 -5 -4 -4 -3 -3 -2 -2 -2 -1 ------- Run | Scr Mat Min Mat Min Exi Min Mat Gar Mat Gar Fac Gar Fac Gar Fac Gar Fac Was Fac Ext Cet Arc Hub Gar Fac Gar Res Qua Res Tes Sec Acc Combat Hostiles Destroyed 459 | . 7 29 8 3 4 9 10 29 12 15 1 12 1 11 5 12 1 5 1 7 5 1 39 21 5 24 2 16 25 27 67 45 Melee 17 | . . . . . . . . . . 2 1 . 1 . . 1 . . . . . . 1 . . . . 3 . 1 7 . Guns 106 | . 3 5 3 1 3 3 7 10 6 4 . 8 . . 4 5 1 5 1 1 . . 22 8 1 2 . . 3 . . . Cannons 100 | . 1 1 . . . . . . . 4 . . . . . . . . . 1 . . 4 2 1 7 2 2 18 10 27 20 AOE 173 | . 3 23 4 2 1 6 3 19 6 5 . 4 . 11 1 6 . . . 4 3 . 11 8 . 9 . . . 10 9 25 Classes Destroyed 27 | 1 5 2 2 . 2 2 . . . 3 . . . . . . . 1 1 1 . . 2 . . . . 1 . 2 2 . Worker 17 | . . 1 3 . . 2 1 . . . . . 2 . . . . . . . . . 4 . 1 . . . 1 . 1 1 Builder 7 | . . . . . . 1 1 . . . . . . . . . . . . . . . 3 . . . . . . . 1 1 Tunneler 3 | . . . 1 1 . . . . . . . . . . . . . . . . . . . . . . . . 1 . . . Hauler 12 | . 2 . 2 . . . 3 . 2 . . . 1 . . . . . . . . . . . . . . . 2 . . . Recycler 15 | 1 1 . . 1 . 2 2 . 1 . . . 1 . 1 . . . . . . . . . . . . . 1 1 . 3 Operator 14 | . 1 . . . . . . . . . . . . . . . . . . . . 9 1 . . . . 1 . . 1 1 Turret 1 | . . . . . 1 . . . . . . . . . . . . . . . . . . . . . . . . . . . Watcher 9 | . 1 . . . . . . . . . . . . . . . . . . . . . . . . . 2 2 3 . . 1 Swarmer 116 | . 3 11 3 2 . 4 3 24 7 4 . . . 11 1 6 1 . . 3 3 . . 4 . 9 . . . . 9 8 Saboteur 1 | . . . . . . . . . . . . . . . . . . . . . . . . . . . . . . . 1 . Grunt 135 | . 4 3 2 . . 4 3 5 2 4 1 7 . . 3 5 . . . . . . 17 9 5 9 . . 6 12 15 19 Brawler 9 | . . . . . . 1 . . 1 . . . . . 1 . . . . . . . . 1 . 1 . . . 1 1 2 Duelist 10 | . . . . . . . . . . 1 . 1 . 1 . . . . . 1 . . . . . 1 . . . 2 2 1 Protector 7 | . . . . . . . . . . . . . . . . . . . . . . . 4 . . . . . . . 1 2 Researcher 1 | . . . . . . . . . . . . . . . . . . . . . . . . . . . . . . 1 . . Sentry 40 | . . . 3 1 . . 4 . 2 1 . 2 . . . 1 . . . . . 1 7 4 . 1 2 . 2 . 6 3 Specialist 1 | . . . . . . . . . . 1 . . . . . . . . . . . . . . . . . . . . . . Hunter 39 | . . . . . . . . . . 4 . 2 1 . . . . . . 2 . . . 2 . 2 . 1 2 9 10 4 Programmer 42 | . . . . . . . . . . . . . . . . . . . 1 . . . 1 . . . . 2 15 2 15 6 Q-Series 2 | . . . . . . . . . . . . . . . . . . . . . . . . . . . . . . 1 1 . Behemoth 4 | . . . . . . . . . . . . . . . . . . . . 1 . . . 1 . 1 . . . . 1 . Compactor 5 | . . . . . . . . . . . . . . . . . . 5 . . . . . . . . . . . . . . Cetus Guard 2 | . . . . . . . . . . . . . . . . . . . . . 2 . . . . . . . . . . . Quarantine Guard 12 | . . . . . . . . . . . . . . . . . . . . . . . . . . . . 12 . . . . S7 Guard 1 | . . . . . . . . . . . . . . . . . . . . . . . . . . . . . . . 1 . Enhanced Grunt 3 | . . . . . . . . . . . . . . . . . . . . . . . 3 . . . . . . . . . Lightning 12 | . . . . . . . . . . . . . . . . . . . . . . . 12 . . . . . . . . . Investigator 1 | . . . . . . . . . . . . . . . . . . . . . . . . . . . . . . 1 . . Executioner 4 | . . . . . . . . . . . . . . . . . . . . . . . . . . . . . . . 4 . Alpha 7 1 | . . . . . . . . . . . . . . . . . . . . . . . . . . . . 1 . . . . Zionite 7 | . . . . . 7 . . . . . . . . . . . . . . . . . . . . . . . . . . . Assembled 18 | . . 15 . . 3 . . . . . . . . . . . . . . . . . . . . . . . . . . . Surgeon 1 | . . . . . . . . . . . . . . . . . . . . . . . 1 . . . . . . . . . Thug 1 | . . . . . . . . . . . . . . . . . . 1 . . . . . . . . . . . . . . Best Kill Streak 20 | 1 5 19 5 2 4 6 4 12 6 4 1 8 2 11 3 6 1 3 1 3 3 3 20 6 3 5 1 2 6 10 9 11 Combat Bots Only 19 | . 3 19 3 2 2 5 4 12 5 4 1 8 1 11 3 6 1 3 1 3 3 1 19 6 3 5 1 2 5 9 9 11 Max Kills in Single Turn 9 | 1 1 6 3 2 1 3 2 4 1 2 1 2 1 9 1 4 1 1 1 2 2 1 3 3 1 4 1 1 2 2 3 4 Gunslinging 1 | . . . . . . . . . . . . 1 . . . . . . . . . . . . . . . . . . . . Exploded 9 | . 1 6 3 2 1 2 2 4 1 2 . 2 . 9 1 4 . . . 2 2 . 3 3 . 4 . . . 2 3 4 Melee 1 | . . . . . . . . . . 1 1 . 1 . . 1 . . . . . . 1 . . . . 1 . 1 1 . Uniques/NPCs Destroyed 4 | . . . . . 4 . . . . . . . . . . . . . . . . . . . . . . . . . . . 8R-AWN (-9/Exiles) EX-DEC (-9/Exiles) EX-BIN (-9/Exiles) EX-HEX (-9/Exiles) Combat | -11 -10 -10 -9 -9 -9 -8 -8 -8 -8 -8 -7 -7 -6 -6 -6 -6 -5 -5 -5 -5 -5 -5 -5 -5 -4 -4 -3 -3 -2 -2 -2 -1 -------- Run | Scr Mat Min Mat Min Exi Min Mat Gar Mat Gar Fac Gar Fac Gar Fac Gar Fac Was Fac Ext Cet Arc Hub Gar Fac Gar Res Qua Res Tes Sec Acc Damage Taken 29627 | . 289 522 913 56 207 651 341 237 588 529 67 553 104 82 335 409 29 . 67 535 20 189 2164 824 352 949 363 1346 1157 2631 8272 4846 Core 3128 | . 60 114 90 7 . 48 28 29 51 97 . 112 . . 95 64 . . 1 69 . . 119 36 . 24 . 150 78 196 535 1125 Absorbed by Shields 3441 | . . . . . . . . . . 80 . 89 . 6 . 152 . . . 153 20 . . 180 . . . . . 809 952 1000 Reduced by Siege Mode 60 | . . . . . . . . . . . . . . . . . . . . . 3 . 57 . . . . . . . . . Core Remaining (%) 70 | 100 . 30 . . . 63 . . . 62 . 84 . . . 81 . . . . . . . 77 . 97 . 81 . . 26 . Volleys Fired 1526 | 2 33 35 30 4 138 35 42 86 32 48 . 34 5 16 22 37 10 24 8 45 7 12 86 49 19 83 24 126 85 67 189 93 Largest 4 | 2 2 2 3 2 3 3 3 3 3 2 . 3 3 3 3 3 2 3 3 3 2 1 3 3 3 2 2 2 4 4 4 1 Hottest 300 | 60 88 88 125 90 69 110 183 183 183 63 . 84 84 84 84 84 60 86 98 150 150 75 96 250 168 98 70 300 88 252 160 130 Shots Fired 2308 | 4 52 51 71 7 210 67 94 105 74 56 . 80 9 18 43 59 11 72 14 62 12 12 144 90 31 84 41 142 139 94 268 92 Gun 1255 | 4 23 31 67 6 209 64 92 90 64 31 . 76 6 8 33 43 2 72 9 15 . . 107 47 14 18 34 57 33 . . . Cannon 826 | . 19 6 . . . . . . . 19 . . . . . . . . 1 27 10 8 20 37 17 60 6 83 106 78 254 75 Launcher 146 | . 10 14 4 1 1 3 2 15 10 6 . 4 . 6 1 5 . . . 5 2 . 11 6 . 3 . . . 12 8 17 Special 81 | . . . . . . . . . . . . . 3 4 9 11 9 . 4 15 . 4 6 . . 3 1 2 . 4 6 . Kinetic 1121 | 2 23 13 36 . 109 43 2 13 . 31 . 76 6 8 33 43 2 72 9 15 . . 122 68 14 18 34 70 113 36 110 . Thermal 376 | 2 19 6 . . . 1 42 77 64 . . . . . . . . . 1 . . . . 16 12 11 . 5 . 5 39 76 Explosive 145 | . 10 14 4 1 1 3 2 15 10 6 . 4 . 6 1 5 . . . 5 2 . 11 6 . 3 . . . 12 8 16 Electromagnetic 585 | . . 18 31 6 100 20 48 . . 19 . . . . . . . . . 27 10 8 5 . 5 49 6 65 26 37 105 . Robot Hit Streak 24 | 1 6 7 7 9 19 8 13 14 6 9 . 10 6 8 15 20 3 9 8 21 7 3 18 14 8 22 9 12 13 9 24 11 Robot Miss Streak 8 | 1 2 7 2 1 4 6 2 4 4 2 . 2 1 1 3 3 1 6 1 2 1 2 2 5 2 1 8 3 3 3 6 3 Penetration Max 2 | . . . . . . . . 1 . 1 . 2 1 . 1 1 . . . 1 . . 2 1 1 2 . . 1 1 1 . Secondary Targets 19 | . . . . . . 1 . . 2 . . 3 . . . 1 . 3 . . . . 8 1 . . . . . . . . Max Gunslinging Chain 2 | . . . . . . 1 . . 1 . . 2 . . . 1 . 1 . . . . 1 1 . . . . . . . . Autonomous 47 | . . . . . 47 . . . . . . . . . . . . . . . . . . . . . . . . . . . Shots Hit Robots 1579 | 2 28 16 47 7 168 39 71 29 35 41 2 58 22 4 33 45 7 58 11 46 10 24 116 64 18 48 19 93 77 63 212 66 Core Hits 928 | 2 18 48 25 6 49 24 28 32 19 26 2 34 7 14 12 25 1 51 3 13 12 12 102 50 8 36 10 33 38 49 80 59 Critical Hits 224 | . . . . . 12 . 2 8 . 4 . 6 . . 1 4 . 8 . . . . 46 9 2 14 6 26 24 4 29 19 Critical Kills 81 | . . . . . 1 . 1 2 . 3 . 3 . . . 2 . 5 . . . . 22 3 1 6 2 2 11 2 7 8 Critical Parts Destroyed 106 | . . . . . 7 . 1 6 . 1 . 3 . . 1 2 . 1 . . . . 22 6 1 6 4 5 13 2 16 9 Melee Attacks 232 | . . . . . . . . . . 16 4 36 22 21 5 12 4 . . 7 . 18 13 . . 1 . 19 . 11 41 2 Impact . | . . . . . . . . . . . . . . . . . . . . . . . . . . . . . . . . . Slashing 232 | . . . . . . . . . . 16 4 36 22 21 5 12 4 . . 7 . 18 13 . . 1 . 19 . 11 41 2 Piercing . | . . . . . . . . . . . . . . . . . . . . . . . . . . . . . . . . . Sneak Attacks 21 | . . . . . . . . . . . . . 6 . . 1 . . . . . 10 1 . . . . 1 . . 1 1 Combat Hostiles 4 | . . . . . . . . . . . . . 3 . . 1 . . . . . . . . . . . . . . . . Follow-up Attacks . | . . . . . . . . . . . . . . . . . . . . . . . . . . . . . . . . . Damage Inflicted 82391 | 22 745 2076 818 311 2006 1257 1528 1684 1060 2120 59 1788 981 1074 757 1917 22 1386 160 1485 997 2007 6072 3083 768 2766 522 3316 3644 6203 14134 15623 Guns 14588 | 22 183 119 494 66 1871 667 1232 594 498 292 . 1017 111 20 599 707 22 1386 160 334 . . 1734 843 271 255 226 504 361 . . . Cannons 27008 | . 183 44 . . . . . . . 353 . . . . . . . . . 424 266 112 486 675 497 1581 213 2311 3283 2204 9227 5149 Explosions 32482 | . 377 1913 311 162 80 590 296 1090 562 571 . 368 . 1054 158 940 . . . 600 731 . 3363 1565 . 930 . . . 3392 3277 10152 Melee 7920 | . . . . . . . . . . 904 59 403 870 . . 270 . . . . . 1895 459 . . . . 501 . 607 1630 322 Ramming 393 | . 2 . 13 83 55 . . . . . . . . . . . . . . 127 . . 30 . . . 83 . . . . . Kinetic 18292 | 22 183 54 257 . 1798 375 45 226 . 292 . 1017 111 20 599 707 22 1386 160 334 . . 1934 1104 271 255 226 571 2401 896 3026 . Thermal 13592 | . 183 44 25 . 50 226 698 368 498 26 . . . . . . . . . . . . . 961 173 . . 600 . 274 2357 7109 Explosive 28106 | . 377 1913 286 162 30 380 104 1090 562 545 . 368 . 1054 158 940 . . . 600 731 . 2305 1018 . 930 . . . 3324 3037 8192 Electromagnetic 14088 | . . 65 237 66 73 276 681 . . 353 . . . . . . . . . 424 266 112 1344 . 324 1581 213 1644 1243 1102 4084 . Impact . | . . . . . . . . . . . . . . . . . . . . . . . . . . . . . . . . . Slashing 7920 | . . . . . . . . . . 904 59 403 870 . . 270 . . . . . 1895 459 . . . . 501 . 607 1630 322 Piercing . | . . . . . . . . . . . . . . . . . . . . . . . . . . . . . . . . . Highest Corruption 12 | . 2 2 1 1 1 1 . . . . . . . . . . . . . . . . 4 3 . . 12 12 2 2 6 6 Average Corruption 2 | . 1 2 1 1 1 1 . . . . . . . . . . . . . . . . 2 3 . . 4 4 1 2 3 3 Corruption Purged 21 | . . . . . . . . . . . . . . . . . . . . . . . 2 . . . . 12 . . 7 . Effects 220 | . . 10 1 7 8 1 . . . . . . . . . . . . . . . . 14 25 . . 2 69 12 19 31 21 Message Errors 63 | . . 5 . 2 4 1 . . . . . . . . . . . . . . . . 3 7 . . . 23 3 7 3 5 Matter Fused 37 | . . . . . . . . . . . . . . . . . . . . . . . 1 5 . . . 18 . . 10 3 Heat Flow Errors 27 | . . 2 . . . . . . . . . . . . . . . . . . . . 1 3 . . 1 7 . 6 6 1 Energy Discharges 17 | . . . . . 1 . . . . . . . . . . . . . . . . . 1 1 . . 1 2 4 3 3 1 Parts Rejected 3 | . . . . . . . . . . . . . . . . . . . . . . . . . . . . . . . . 3 Data Loss (minor) 39 | . . 3 1 5 1 . . . . . . . . . . . . . . . . . 3 6 . . . 12 1 2 2 3 Data Loss (major) 3 | . . . . . . . . . . . . . . . . . . . . . . . . . . . . . . . 2 1 Misfires 1 | . . . . . . . . . . . . . . . . . . . . . . . . . . . . 1 . . . . Misdirections 1 | . . . . . . . . . . . . . . . . . . . . . . . . . . . . 1 . . . . Targeting Errors 24 | . . . . . 1 . . . . . . . . . . . . . . . . . 4 3 . . . 4 4 . 5 3 Weapon Failures 5 | . . . . . 1 . . . . . . . . . . . . . . . . . 1 . . . . 1 . 1 . 1 Overload Shots . | . . . . . . . . . . . . . . . . . . . . . . . . . . . . . . . . . Overflow Damage 4917 | . 39 71 68 . 31 61 34 7 19 44 . 30 108 47 6 84 . . . 41 130 549 172 55 7 38 13 126 146 322 971 1698 Projectiles 893 | . 7 . . . . . . . . . . . . . . . . . . . . . 9 21 7 6 . 25 146 104 319 249 Explosions 2720 | . 32 71 68 . . 61 34 7 19 36 . 30 . 47 6 84 . . . 4 130 . 147 34 . 32 . . . 141 495 1242 Melee 1304 | . . . . . 31 . . . . 8 . . 108 . . . . . . 37 . 549 16 . . . 13 101 . 77 157 207 Knockbacks 38 | . . . . . . . . . . . . . . . . . . . . 1 . . 3 3 . . . 1 9 3 18 . Impact 1 | . . . . . . . . . . . . . . . . . . . . 1 . . . . . . . . . . . . Kinetic 35 | . . . . . . . . . . . . . . . . . . . . . . . 3 3 . . . 1 9 3 16 . Secondary 2 | . . . . . . . . . . . . . . . . . . . . . . . . . . . . . . . 2 . Self-Inflicted Damage 1599 | . 12 59 102 . . 30 40 56 127 . . . . 24 33 . . . . . . . 20 8 . . 41 . . . 77 970 Shots 23 | . 1 3 2 . . 2 1 2 4 . . . . 1 1 . . . . . . . 2 1 . . . . . . 1 2 Rammed 27 | . 1 . 1 8 12 . . . . . . . . . . . . . . 3 . . 1 . . . 1 . . . . . Targets Rammed 29 | . 1 . 2 8 13 . . . . . . . . . . . . . . 3 . . 1 . . . 1 . . . . . Kicked . | . . . . . . . . . . . . . . . . . . . . . . . . . . . . . . . . . Crushed 2 | . . . 1 . 1 . . . . . . . . . . . . . . . . . . . . . . . . . . . Highest Temperature 468 | . 243 273 138 108 166 114 81 137 155 4 . 121 . 24 20 2 . 24 56 233 180 225 225 420 79 188 230 468 148 457 167 148 Average Temperature 63 | . 70 74 43 60 67 50 34 57 47 3 . 44 . 17 10 2 . 8 27 75 92 114 100 87 44 47 136 71 47 76 45 105 Received Heat Transfer 3474 | . 72 169 246 18 . 333 117 . 117 27 36 202 . 9 123 81 . . . 84 8 9 291 190 72 177 . . 81 239 693 80 Effects 8 | . . . . . . . . . . . . . . . . . . . . . . . . 3 . . . 2 . 3 . . Shutdowns 2 | . . . . . . . . . . . . . . . . . . . . . . . . . . . . . . 2 . . Energy Bleed 2 | . . . . . . . . . . . . . . . . . . . . . . . . . . . . 2 . . . . Interference 3 | . . . . . . . . . . . . . . . . . . . . . . . . 3 . . . . . . . . Damage (minor) 1 | . . . . . . . . . . . . . . . . . . . . . . . . . . . . . . 1 . . Siege Activations 3 | . . . . . . . . . . . . . . . . . . . . . 2 . 1 . . . . . . . . . Total Turns 150 | . . . . . . . . . . . . . . . . . . . . . 24 . 126 . . . . . . . . . Longest Duration 126 | . . . . . . . . . . . . . . . . . . . . . 18 . 126 . . . . . . . . . Robots Corrupted 64 | . . . 1 . . . . . . . . . . . . . . . . 1 2 1 4 . 3 6 . 11 5 6 24 . Combat Hostiles 60 | . . . 1 . . . . . . . . . . . . . . . . 1 2 1 1 . 3 6 . 11 4 6 24 . Parts Fried 163 | . . . 2 . 8 3 6 . . 3 . . . . . . . . . 3 2 1 13 . 5 21 . 33 10 11 42 . Impact Corruptions 17 | . . . . . 11 . . . . . . . . . . . . . . 3 . . 1 . . . 1 . . . 1 . Robots Melted 3 | . . . . . . . . . . . . . . . . . . . . . . . . 3 . . . . . . . . Combat Hostiles 3 | . . . . . . . . . . . . . . . . . . . . . . . . 3 . . . . . . . . Parts Melted 30 | . . . . 1 . . 1 3 2 . . . . . . . . . . . . . . 22 . . . . . . 1 . Heat Transferred 11606 | . 370 74 50 . 62 237 964 629 888 50 . . . . . . . . . . . . . 3816 185 . . . . 150 1347 2784 Parts Sabotaged . | . . . . . . . . . . . . . . . . . . . . . . . . . . . . . . . . . Parts Stolen . | . . . . . . . . . . . . . . . . . . . . . . . . . . . . . . . . . Parts Stripped . | . . . . . . . . . . . . . . . . . . . . . . . . . . . . . . . . . Power Chain Reactions 11 | . . . 1 . 2 4 1 . . 1 . . . . . . . . . . . . 1 . . . . . . . 1 . Missiles Intercepted . | . . . . . . . . . . . . . . . . . . . . . . . . . . . . . . . . . Alert | -11 -10 -10 -9 -9 -9 -8 -8 -8 -8 -8 -7 -7 -6 -6 -6 -6 -5 -5 -5 -5 -5 -5 -5 -5 -4 -4 -3 -3 -2 -2 -2 -1 ------- Run | Scr Mat Min Mat Min Exi Min Mat Gar Mat Gar Fac Gar Fac Gar Fac Gar Fac Was Fac Ext Cet Arc Hub Gar Fac Gar Res Qua Res Tes Sec Acc Peak Influence 2174 | 5 306 360 226 119 . 237 326 939 1063 1183 689 928 1023 1120 753 942 517 170 452 754 770 378 2019 2174 1286 1693 1052 574 641 815 1532 1970 Initial 1413 | . 3 10 46 82 . . 14 63 457 690 620 482 487 608 588 406 494 170 . 164 203 228 . 1413 1141 782 951 468 283 360 422 895 Average 616 | 1 93 198 103 32 . 125 134 603 793 969 641 840 605 941 597 737 500 79 120 518 462 158 1049 1828 1153 1241 970 389 336 511 1040 1225 Maximum Alert Level 5 | . 1 1 1 . . 1 1 3 3 4 2 3 3 4 3 3 2 . 2 3 3 1 5 5 4 5 3 2 2 3 4 5 Low Security (%) 24 | 100 92 59 74 100 . 64 77 9 . . . . . . . . . 100 79 4 . 70 19 . . . . 11 14 6 . . Level 1 14 | . 7 40 25 . . 35 22 2 . . . . . . . . . . 19 12 59 29 . . . . . 31 60 33 . . Level 2 22 | . . . . . . . . 53 38 4 100 18 78 14 96 24 100 . . 80 9 . 4 . . . . 57 24 34 11 . Level 3 22 | . . . . . . . . 34 61 85 . 81 21 68 3 75 . . . 2 31 . 25 . 11 40 100 . . 25 46 37 Level 4 12 | . . . . . . . . . . 10 . . . 16 . . . . . . . . 35 33 88 47 . . . . 41 62 Level 5 3 | . . . . . . . . . . . . . . . . . . . . . . . 13 66 . 12 . . . . . . High Security . | . . . . . . . . . . . . . . . . . . . . . . . . . . . . . . . . . Max Security . | . . . . . . . . . . . . . . . . . . . . . . . . . . . . . . . . . Squads Dispatched 79 | . . . 2 . . 1 1 . 2 . 1 . 2 . 3 . . . 2 6 . . 12 . 2 . 2 4 4 11 14 10 Investigation 10 | . . . 2 . . . 1 . . . . . . . 2 . . . . 1 . . 1 . 1 . . 2 . . . . Extermination 20 | . . . . . . . . . . . . . 1 . . . . . 1 . . . 1 . . . . 1 3 2 8 3 Reinforcement 27 | . . . . . . 1 . . 1 . 1 . 1 . 1 . . . 1 4 . . 3 . 1 . . 1 1 5 3 3 Assault 15 | . . . . . . . . . . . . . . . . . . . . 1 . . 1 . . . 2 . . 4 3 4 Garrison 7 | . . . . . . . . . 1 . . . . . . . . . . . . . 6 . . . . . . . . . Intercept . | . . . . . . . . . . . . . . . . . . . . . . . . . . . . . . . . . Construction Impeded 4 | . . . . . . 1 . . . . . . . . . . . . . 2 . . . . . . . . . 1 . . Haulers Reinforced 8 | . . . . . . . . . . . . . 1 . . . . . . . . . 3 . 1 . . . . . 1 2 Stealth | -11 -10 -10 -9 -9 -9 -8 -8 -8 -8 -8 -7 -7 -6 -6 -6 -6 -5 -5 -5 -5 -5 -5 -5 -5 -4 -4 -3 -3 -2 -2 -2 -1 --------- Run | Scr Mat Min Mat Min Exi Min Mat Gar Mat Gar Fac Gar Fac Gar Fac Gar Fac Was Fac Ext Cet Arc Hub Gar Fac Gar Res Qua Res Tes Sec Acc Distress Signals 10 | . . . 4 . . . 2 . . . . . . . . . . . . 1 1 . 1 . . . . . 1 . . . Communications Jammed 406 | . . . . . . . . . . . . . . . . . . . . 272 . . 3 . . . . . . 2 95 34 Distress Signals 402 | . . . . . . . . . . . . . . . . . . . . 272 . . 1 . . . . . . . 95 34 Times Spotted 737 | . 20 38 20 6 55 10 16 22 18 13 5 16 4 5 10 15 5 6 14 33 15 14 61 33 6 22 5 21 31 40 94 64 Peak Tracking Total 22 | . 4 22 6 4 9 6 3 6 4 4 3 7 2 10 3 6 4 3 5 5 6 1 16 5 4 4 2 2 5 7 6 11 Tactical Retreats 69 | . 2 6 3 . 20 1 1 . 3 3 . . . 1 . 1 . . . . 1 . 3 13 . 2 . 2 . 1 5 1 Traps | -11 -10 -10 -9 -9 -9 -8 -8 -8 -8 -8 -7 -7 -6 -6 -6 -6 -5 -5 -5 -5 -5 -5 -5 -5 -4 -4 -3 -3 -2 -2 -2 -1 ------- Run | Scr Mat Min Mat Min Exi Min Mat Gar Mat Gar Fac Gar Fac Gar Fac Gar Fac Was Fac Ext Cet Arc Hub Gar Fac Gar Res Qua Res Tes Sec Acc Traps Triggered 53 | . 2 . 1 . . . 1 4 . 6 . 4 . 5 1 4 1 . . 1 . . . 7 . 1 3 5 1 5 . 1 Indirectly . | . . . . . . . . . . . . . . . . . . . . . . . . . . . . . . . . . Trap Hack Attempts . | . . . . . . . . . . . . . . . . . . . . . . . . . . . . . . . . . Triggered . | . . . . . . . . . . . . . . . . . . . . . . . . . . . . . . . . . Disarmed . | . . . . . . . . . . . . . . . . . . . . . . . . . . . . . . . . . Reprogrammed . | . . . . . . . . . . . . . . . . . . . . . . . . . . . . . . . . . Reused 1 | . . . . . . . . . . . . . . . . . . . . . . . . . . . . . . 1 . . Traps Reconfigurated 7 | . . . . . . . . . . . . . . . 2 . . . . . . . . . . . . . . 5 . . Traps Extracted . | . . . . . . . . . . . . . . . . . . . . . . . . . . . . . . . . . Installed . | . . . . . . . . . . . . . . . . . . . . . . . . . . . . . . . . . Triggered 2 | . . . . . . . . . . . . . . . . . . . . . . . . . . . . . . 2 . . Exploded 3 | . . . . . 3 . . . . . . . . . . . . . . . . . . . . . . . . . . . Machines | -11 -10 -10 -9 -9 -9 -8 -8 -8 -8 -8 -7 -7 -6 -6 -6 -6 -5 -5 -5 -5 -5 -5 -5 -5 -4 -4 -3 -3 -2 -2 -2 -1 ---------- Run | Scr Mat Min Mat Min Exi Min Mat Gar Mat Gar Fac Gar Fac Gar Fac Gar Fac Was Fac Ext Cet Arc Hub Gar Fac Gar Res Qua Res Tes Sec Acc Machines Disabled 119 | . 2 2 2 2 12 . 1 4 6 2 . 1 . 3 . 4 . . 5 7 . . 14 2 . 6 . 14 1 8 14 7 Max in Single Turn 7 | . 1 2 1 1 2 . 1 1 2 1 . 1 . 1 . 1 . . . 1 . . 6 1 . 2 . 2 1 1 1 7 Garrison Access 5 | . . . . . . . . . . . . . . . . . . . . . . . . . . . 2 1 1 1 . . Garrison Relay 11 | . . . . . . . . 2 . 1 . 1 . 2 . 3 . . . . . . . . . 2 . . . . . . Phase Generator 1 | . . . . . . . . . . . . . . . . . . . . . . . . . . 1 . . . . . . Network Hub 2 | . . . . . . . . . . . . . . . . . . . . . . . 2 . . . . . . . . . Machines Sabotaged . | . . . . . . . . . . . . . . . . . . . . . . . . . . . . . . . . . Garrisons Compromised . | . . . . . . . . . . . . . . . . . . . . . . . . . . . . . . . . . Overloaded Fab Kills . | . . . . . . . . . . . . . . . . . . . . . . . . . . . . . . . . . Fab Network Shutdowns 1 | . . . . . . . . . . . . . 1 . . . . . . . . . . . . . . . . . . . Hacking | -11 -10 -10 -9 -9 -9 -8 -8 -8 -8 -8 -7 -7 -6 -6 -6 -6 -5 -5 -5 -5 -5 -5 -5 -5 -4 -4 -3 -3 -2 -2 -2 -1 --------- Run | Scr Mat Min Mat Min Exi Min Mat Gar Mat Gar Fac Gar Fac Gar Fac Gar Fac Was Fac Ext Cet Arc Hub Gar Fac Gar Res Qua Res Tes Sec Acc Machines Accessed 102 | . 7 . 7 . 2 . 5 . 2 . 2 . 3 . 5 . . . 2 14 3 . 2 . 2 . 3 14 6 9 12 2 Terminals 78 | . 6 . 7 . . . 3 . 1 . 1 . . . 4 . . . 2 14 3 . 1 . 1 . 1 11 4 7 11 1 Fabricators 2 | . . . . . . . . . . . . . 1 . . . . . . . . . . . . . . . . . . 1 Repair Stations 6 | . . . . . . . 1 . . . . . . . . . . . . . . . . . . . . 2 1 1 1 . Recycling Units 2 | . 1 . . . . . . . . . . . 1 . . . . . . . . . . . . . . . . . . . Scanalyzers . | . . . . . . . . . . . . . . . . . . . . . . . . . . . . . . . . . Garrison Access 12 | . . . . . . . 1 . 1 . 1 . 1 . 1 . . . . . . . 1 . 1 . 2 1 1 1 . . Total Hacks 309 | . 25 . 19 . 2 . 16 . 5 . 3 . 10 . 12 . . . 4 28 10 . 7 . 6 . 11 52 29 25 34 11 Successful 142 | . 15 . 9 . 2 . 9 . 2 . 1 . 6 . 5 . . . 4 7 2 . 3 . 3 . 5 23 15 14 11 6 Failed 167 | . 10 . 10 . . . 7 . 3 . 2 . 4 . 7 . . . . 21 8 . 4 . 3 . 6 29 14 11 23 5 Catastrophic 27 | . 1 . 1 . . . . . . . . . 2 . 2 . . . . 5 . . . . . . 2 7 3 1 3 . Database Lockouts . | . . . . . . . . . . . . . . . . . . . . . . . . . . . . . . . . . Manual 152 | . 19 . 7 . 1 . 12 . 3 . 2 . 3 . 6 . 1 . 2 5 1 . 6 . 5 . 2 31 21 11 14 . Terminals 248 | . 23 . 19 . . . 12 . 4 . 2 . . . 9 . . . 4 28 10 . 6 . 4 . 5 42 23 21 28 8 Fabricators 9 | . . . . . . . . . . . . . 6 . . . . . . . . . . . . . . . . . . 3 Repair Stations 22 | . . . . . . . 2 . . . . . . . . . . . . . . . . . . . . 8 4 2 6 . Recycling Units 4 | . 2 . . . . . . . . . . . 2 . . . . . . . . . . . . . . . . . . . Scanalyzers . | . . . . . . . . . . . . . . . . . . . . . . . . . . . . . . . . . Garrison Access 24 | . . . . . . . 2 . 1 . 1 . 2 . 3 . . . . . . . 1 . 2 . 6 2 2 2 . . Terminal Hacks 64 | . 8 . 6 . 2 . 2 . 1 . . . . . 2 . . . 3 7 2 . 2 . . . . 8 4 6 7 4 Record 5 | . . . . . 1 . . . . . . . . . . . . . . . 2 . . . . . . 2 . . . . Part Schematic 2 | . 1 . . . . . . . . . . . . . . . . . . . . . . . . . . . . 1 . . Robot Analysis 3 | . 2 . . . . . . . . . . . . . . . . . 1 . . . . . . . . . . . . . Prototype ID Bank 3 | . 1 . 2 . . . . . . . . . . . . . . . . . . . . . . . . . . . . . Open Door 12 | . . . . . . . . . . . . . . . . . . . 1 5 . . . . . . . . . 1 5 . Branch Access Points 5 | . . . 1 . . . . . . . . . . . 1 . . . 1 . . . . . . . . . 1 . . 1 Emergency Access Points 1 | . 1 . . . . . . . . . . . . . . . . . . . . . . . . . . . . . . . Terminal Index 1 | . . . . . . . . . . . . . . . . . . . . . . . . . . . . . 1 . . . Fabricator Index 1 | . . . . . . . . . . . . . . . . . . . . . . . . . . . . . 1 . . . Unreport Threat 12 | . . . . . . . . . . . . . . . . . . . . 1 . . 1 . . . . 4 1 1 1 3 Locate Traps 3 | . . . 1 . . . . . . . . . . . 1 . . . . . . . . . . . . . . . 1 . Recall Reinforcements 2 | . . . . . . . . . . . . . . . . . . . . 1 . . . . . . . . . 1 . . Hauler Manifests 1 | . 1 . . . . . . . . . . . . . . . . . . . . . . . . . . . . . . . Zone Layout 11 | . 2 . 2 . . . 2 . 1 . . . . . . . . . . . . . 1 . . . . 2 . 1 . . EX-Prototype ID Bank 1 | . . . . . 1 . . . . . . . . . . . . . . . . . . . . . . . . . . . Protovariant Controls 1 | . . . . . . . . . . . . . . . . . . . . . . . . . . . . . . 1 . . Fabricator Hacks 4 | . . . . . . . . . . . . . 2 . . . . . . . . . . . . . . . . . . 2 Load Schematic 1 | . . . . . . . . . . . . . . . . . . . . . . . . . . . . . . . . 1 Build 3 | . . . . . . . . . . . . . 2 . . . . . . . . . . . . . . . . . . 1 Repair Station Hacks 10 | . . . . . . . 2 . . . . . . . . . . . . . . . . . . . . 3 2 1 2 . Scan Component 7 | . . . . . . . 1 . . . . . . . . . . . . . . . . . . . . 3 1 1 1 . Repair 3 | . . . . . . . 1 . . . . . . . . . . . . . . . . . . . . . 1 . 1 . Recycling Unit Hacks 3 | . 2 . . . . . . . . . . . 1 . . . . . . . . . . . . . . . . . . . Retrieve Components 3 | . 2 . . . . . . . . . . . 1 . . . . . . . . . . . . . . . . . . . Scanalyzer . | . . . . . . . . . . . . . . . . . . . . . . . . . . . . . . . . . Garrison Access Hacks 19 | . . . . . . . 1 . 1 . 1 . 2 . 2 . . . . . . . 1 . 1 . 4 2 2 2 . . Unlock Access 7 | . . . . . . . 1 . 1 . 1 . 1 . 1 . . . . . . . 1 . 1 . . . . . . . Seal Access 5 | . . . . . . . . . . . . . . . . . . . . . . . . . . . 2 1 1 1 . . Coupler Status 7 | . . . . . . . . . . . . . 1 . 1 . . . . . . . . . . . 2 1 1 1 . . Unauthorized Hacks 42 | . 5 . 3 . . . 4 . . . . . 1 . 1 . . . 1 . . . . . 2 . 1 10 7 5 2 . Terminals 38 | . 5 . 3 . . . 4 . . . . . . . . . . . 1 . . . . . 1 . . 10 7 5 2 . Track 13 | . 2 . . . . . 2 . . . . . . . . . . . . . . . . . . . . 6 2 1 . . Botnet 21 | . 2 . 2 . . . 2 . . . . . . . . . . . 1 . . . . . 1 . . 4 4 3 2 . Operators 4 | . 1 . 1 . . . . . . . . . . . . . . . . . . . . . . . . . 1 1 . . Fabricators 1 | . . . . . . . . . . . . . 1 . . . . . . . . . . . . . . . . . . . Prioritize 1 | . . . . . . . . . . . . . 1 . . . . . . . . . . . . . . . . . . . Repair Stations . | . . . . . . . . . . . . . . . . . . . . . . . . . . . . . . . . . Recycling Units . | . . . . . . . . . . . . . . . . . . . . . . . . . . . . . . . . . Scanalyzers . | . . . . . . . . . . . . . . . . . . . . . . . . . . . . . . . . . Garrison Access 3 | . . . . . . . . . . . . . . . 1 . . . . . . . . . 1 . 1 . . . . . Watchers 1 | . . . . . . . . . . . . . . . . . . . . . . . . . . . 1 . . . . . Eject 2 | . . . . . . . . . . . . . . . 1 . . . . . . . . . 1 . . . . . . . Data Cores Recovered . | . . . . . . . . . . . . . . . . . . . . . . . . . . . . . . . . . Used . | . . . . . . . . . . . . . . . . . . . . . . . . . . . . . . . . . Hacking Detections 77 | . 6 . 7 . . . 4 . 1 . 2 . 2 . 4 . 1 . 1 10 4 . 1 . 1 . 1 11 4 6 9 2 Full Trace Events 7 | . . . 2 . . . . . . . . . . . 1 . . . . 1 . . 1 . . . . 2 . . . . Feedback Events 2 | . . . 1 . . . . . . . . . . . . . . . . . . . . . . . . 1 . . . . Corruption 2 | . . . 1 . . . . . . . . . . . . . . . . . . . . . . . . 1 . . . . Feedback Blocked . | . . . . . . . . . . . . . . . . . . . . . . . . . . . . . . . . . Robot Schematics Acquired . | . . . . . . . . . . . . . . . . . . . . . . . . . . . . . . . . . Robots Built . | . . . . . . . . . . . . . . . . . . . . . . . . . . . . . . . . . Matter . | . . . . . . . . . . . . . . . . . . . . . . . . . . . . . . . . . Time . | . . . . . . . . . . . . . . . . . . . . . . . . . . . . . . . . . Total Robot Build Rating . | . . . . . . . . . . . . . . . . . . . . . . . . . . . . . . . . . Part Schematics Acquired 2 | . 1 . . . . . . . . . . . . . . . . . . . . . . . . . . . . 1 . . Parts Built 3 | . . . . . . . . . . . . . 2 . . . . . . . . . . . . . . . . . . 1 Matter 870 | . . . . . . . . . . . . . 636 . . . . . . . . . . . . . . . . . . 234 Time 292 | . . . . . . . . . . . . . 253 . . . . . . . . . . . . . . . . . . 39 Total Part Build Rating 19 | . . . . . . . . . . . . . 12 . . . . . . . . . . . . . . . . . . 7 Parts Repaired 3 | . . . . . . . 1 . . . . . . . . . . . . . . . . . . . . . 1 . 1 . Time 114 | . . . . . . . 89 . . . . . . . . . . . . . . . . . . . . . 13 . 12 . Parts Recycled . | . . . . . . . . . . . . . . . . . . . . . . . . . . . . . . . . . Recycled Matter . | . . . . . . . . . . . . . . . . . . . . . . . . . . . . . . . . . Retrieved Matter . | . . . . . . . . . . . . . . . . . . . . . . . . . . . . . . . . . Retrieved Components 5 | . 5 . . . . . . . . . . . . . . . . . . . . . . . . . . . . . . . Parts Scanalyzed . | . . . . . . . . . . . . . . . . . . . . . . . . . . . . . . . . . Part Schematics Acquired . | . . . . . . . . . . . . . . . . . . . . . . . . . . . . . . . . . Parts Damaged . | . . . . . . . . . . . . . . . . . . . . . . . . . . . . . . . . . Bothacking | -11 -10 -10 -9 -9 -9 -8 -8 -8 -8 -8 -7 -7 -6 -6 -6 -6 -5 -5 -5 -5 -5 -5 -5 -5 -4 -4 -3 -3 -2 -2 -2 -1 ------------ Run | Scr Mat Min Mat Min Exi Min Mat Gar Mat Gar Fac Gar Fac Gar Fac Gar Fac Was Fac Ext Cet Arc Hub Gar Fac Gar Res Qua Res Tes Sec Acc Used RIF Installer 7 | . . . . . . . . 1 . 1 . 1 . 1 . 1 . . . . . . . 1 . 1 . . . . . . Hotswap 1 | . . . . . . . . . . . . . . 1 . . . . . . . . . . . . . . . . . . Signal Jammer 1 | . . . . . . . . . . . . 1 . . . . . . . . . . . . . . . . . . . . Patrol Navigation 1 | . . . . . . . . . . . . . . . . . . . . . . . . . . 1 . . . . . . Watcher Feeds 1 | . . . . . . . . . . 1 . . . . . . . . . . . . . . . . . . . . . . Structural Interface 1 | . . . . . . . . . . . . . . . . 1 . . . . . . . . . . . . . . . . Program Shield 1 | . . . . . . . . . . . . . . . . . . . . . . . . 1 . . . . . . . . Robots Hacked 42 | . . . . . . . . . . . . . 1 2 3 6 6 . 2 5 . 2 4 . . 3 1 2 . 3 2 . Non-combat 15 | . . . . . . . . . . . . . . . 1 . 3 . 1 2 . . 2 . . . 1 1 . 2 2 . Combat 27 | . . . . . . . . . . . . . 1 2 2 6 3 . 1 3 . 2 2 . . 3 . 1 . 1 . . Robot Hacks Applied 47 | . . . . . . . . . . . . . 2 2 5 6 6 . 2 6 . 2 4 . . 3 1 2 . 3 3 . parse_system 2 | . . . . . . . . . . . . . . . . . . . . 1 . . . . . . . . . 1 . . find_chute 1 | . . . . . . . . . . . . . . . . . 1 . . . . . . . . . . . . . . . drop_inventory 4 | . . . . . . . . . . . . . . . 1 . . . . . . . 1 . . . 1 1 . . . . find_recycling 1 | . . . . . . . . . . . . . . . . . 1 . . . . . . . . . . . . . . . purge_threat 3 | . . . . . . . . . . . . . . . . . . . . 1 . . . . . . . . . . 2 . locate_traps 2 | . . . . . . . . . . . . . . . . . . . 1 1 . . . . . . . . . . . . block_reporting 1 | . . . . . . . . . . . . . . . . . . . . 1 . . . . . . . . . . . . map_route 3 | . . . . . . . . . . . . . . . . . 1 . . . . . 1 . . . . . . . 1 . locate_prototypes 1 | . . . . . . . . . . . . . . . . . . . . . . . . . . . . 1 . . . . find_garrison 2 | . . . . . . . . . . . . . 1 . 1 . . . . . . . . . . . . . . . . . link_fov 1 | . . . . . . . . . . . . . . . 1 . . . . . . . . . . . . . . . . . reboot_system 1 | . . . . . . . . . . . . . . . . 1 . . . . . . . . . . . . . . . . overwrite_iff 8 | . . . . . . . . . . . . . 1 1 . . 3 . . . . . 1 . . 2 . . . . . . streamctrl_low 1 | . . . . . . . . . . . . . . . . . . . . . . . . . . . . . . 1 . . formatsys_low 1 | . . . . . . . . . . . . . . . . . . . . . . . . . . . . . . 1 . . formatsys_high 15 | . . . . . . . . . . . . . . 1 2 5 . . 1 2 . 2 1 . . 1 . . . . . . Relay Couplers Released 62 | . . . . . . . . 9 . 5 . 5 . 7 4 13 . . . . . . . . 3 8 2 . 3 3 . . Ejected 7 | . . . . . . . . . . . . . . . 4 . . . . . . . . . 3 . . . . . . . Machine Destruction 55 | . . . . . . . . 9 . 5 . 5 . 7 . 13 . . . . . . . . . 8 2 . 3 3 . . Attached 18 | . . . . . . . . . . . . . 2 1 3 3 1 . 1 . . . 1 . . 3 2 . 1 . . . Robots Rewired 15 | . . . . . . . . . . 6 . 6 . . . . . . . 3 . . . . . . . . . . . . Allies Hacked . | . . . . . . . . . . . . . . . . . . . . . . . . . . . . . . . . . Hacks Repelled . | . . . . . . . . . . . . . . . . . . . . . . . . . . . . . . . . . Allies | -11 -10 -10 -9 -9 -9 -8 -8 -8 -8 -8 -7 -7 -6 -6 -6 -6 -5 -5 -5 -5 -5 -5 -5 -5 -4 -4 -3 -3 -2 -2 -2 -1 -------- Run | Scr Mat Min Mat Min Exi Min Mat Gar Mat Gar Fac Gar Fac Gar Fac Gar Fac Was Fac Ext Cet Arc Hub Gar Fac Gar Res Qua Res Tes Sec Acc Total Allies 76 | . . . . 3 . . . . . 6 . 6 1 2 2 5 3 20 1 13 5 2 2 . . 3 . . . 2 . . Largest Group 19 | . . . . 3 3 . . . . 6 6 6 7 3 1 4 . 19 19 13 9 9 9 . . 2 . . . 1 . . Highest-Rated Group 709 | . . . . 40 40 . . . . 160 160 160 125 41 32 119 . 696 696 533 709 709 630 . . 105 . . . 32 . . Highest-Rated Ally 156 | . . . . 16 16 . . . . 38 38 38 41 29 32 47 . 50 50 156 156 156 94 . . 58 . . . 32 . . Total Orders 18 | . . . . . . . . . . 7 . 2 2 1 1 . . . . . . 2 . . . . . . . 3 . . STAY 12 | . . . . . . . . . . 6 . 1 1 1 1 . . . . . . 1 . . . . . . . 1 . . FOLLOW 4 | . . . . . . . . . . 1 . 1 1 . . . . . . . . 1 . . . . . . . . . . AID 2 | . . . . . . . . . . . . . . . . . . . . . . . . . . . . . . 2 . . Ally Attacks 500 | . . . . 13 3 . . . . . 15 34 23 18 14 37 2 24 38 145 41 7 72 . . 14 . . . . . . Total Damage 12905 | . . . . 171 43 . . . . . 270 784 383 132 277 1090 30 376 1604 3667 1009 278 2341 . . 450 . . . . . . Kills 91 | . . . . 3 1 . . . . . 1 7 4 4 1 4 . 1 15 23 9 1 15 . . 2 . . . . . . Allies Corrupted 5 | . . . . . . . . . . . . . . . . . . . 2 . . . 3 . . . . . . . . . Allies Melted . | . . . . . . . . . . . . . . . . . . . . . . . . . . . . . . . . . Intel | -11 -10 -10 -9 -9 -9 -8 -8 -8 -8 -8 -7 -7 -6 -6 -6 -6 -5 -5 -5 -5 -5 -5 -5 -5 -4 -4 -3 -3 -2 -2 -2 -1 ------- Run | Scr Mat Min Mat Min Exi Min Mat Gar Mat Gar Fac Gar Fac Gar Fac Gar Fac Was Fac Ext Cet Arc Hub Gar Fac Gar Res Qua Res Tes Sec Acc Robot Analysis Total 3 | . 2 . . . . . . . . . . . . . . . . . 1 . . . . . . . . . . . . . Derelict Logs Recovered 4 | . . 2 . 2 . . . . . . . . . . . . . . . . . . . . . . . . . . . . Drone Launches . | . . . . . . . . . . . . . . . . . . . . . . . . . . . . . . . . . Drone Recoveries . | . . . . . . . . . . . . . . . . . . . . . . . . . . . . . . . . . Exploration | -11 -10 -10 -9 -9 -9 -8 -8 -8 -8 -8 -7 -7 -6 -6 -6 -6 -5 -5 -5 -5 -5 -5 -5 -5 -4 -4 -3 -3 -2 -2 -2 -1 ------------- Run | Scr Mat Min Mat Min Exi Min Mat Gar Mat Gar Fac Gar Fac Gar Fac Gar Fac Was Fac Ext Cet Arc Hub Gar Fac Gar Res Qua Res Tes Sec Acc Turns Passed 34360 | 54 1013 863 763 1431 2284 401 1008 1452 298 1340 124 746 504 522 554 849 304 848 493 1423 433 1363 1126 1065 454 1074 500 3564 1448 1864 3004 1191 Spaces Moved 18370 | 40 729 553 435 767 1125 228 481 769 123 773 90 401 264 327 370 621 216 586 273 763 197 306 466 491 219 563 339 2231 678 842 1425 679 Core 45 | 1 . . . . . . . . . . . . . . . . . . . . . 30 . . . . . . . . . 14 Treads 7267 | 2 8 . 93 767 290 . . . . . . . . . . . . 110 273 763 197 276 466 491 219 234 . 724 678 842 834 . Legs 2977 | . . . . . 178 . 402 769 123 253 . . . . . . . . . . . . . . . . . . . . 587 665 Wheels 8077 | 37 721 553 342 . 657 228 79 . . 520 90 401 264 327 370 621 216 476 . . . . . . . 329 339 1507 . . . . Hover 4 | . . . . . . . . . . . . . . . . . . . . . . . . . . . . . . . 4 . Flight . | . . . . . . . . . . . . . . . . . . . . . . . . . . . . . . . . . Fastest Speed 50 | 50 90 110 110 180 100 120 120 160 160 110 120 120 110 110 110 110 110 110 160 160 160 160 160 180 180 120 120 110 165 165 133 50 Average Speed 146 | 85 119 133 131 180 138 127 158 160 160 127 120 120 110 110 110 110 110 119 160 160 160 364 166 180 180 148 120 135 165 165 158 136 Slowest Speed 2250 | 160 200 140 180 180 240 160 250 160 160 160 120 130 110 110 110 110 110 180 160 160 160 2250 180 200 180 220 130 245 170 165 296 150 Overloaded Moves . | . . . . . . . . . . . . . . . . . . . . . . . . . . . . . . . . . Propulsion Burnouts . | . . . . . . . . . . . . . . . . . . . . . . . . . . . . . . . . . Robots Hopped . | . . . . . . . . . . . . . . . . . . . . . . . . . . . . . . . . . Cave-ins Triggered 1 | . . . . . . . . . . . . . . . . . . . . . . . . . . . . . 1 . . . Teleports 4 | . . . . . . . . . . . . . . . . . . . . . . . . . . . . . . 1 3 . Exploration Rate (%) 54 | 4 83 98 36 100 90 59 49 81 21 80 4 54 8 61 16 69 6 88 10 85 61 87 51 82 9 58 13 97 24 84 94 32 Regions Visited 32 Branch Regions 11 Pre-discovered Areas 2 | . . 1 . . 1 . . . . . . . . . . . . . . . . . . . . . . . . . . . Known Exits Taken 17 | . . . 1 . . . 1 . 1 . 1 . 1 . 1 . . . 1 1 1 1 1 . 1 . 1 1 1 1 1 . Unknown Exits Taken 6 | 1 1 1 . 1 1 1 . . . . . . . . . . . . . . . . . . . . . . . . . . Scrap Searched 2 | . . 1 . 1 . . . . . . . . . . . . . . . . . . . . . . . . . . . . Spaces Dug 203 | . 23 13 . . . . 13 9 4 2 1 6 4 33 5 . 4 . 1 2 22 . 1 . 6 6 . 25 12 1 6 4 Terrain Destroyed 1962 | . 33 109 35 10 36 53 34 64 66 38 1 24 4 58 15 31 4 2 1 101 41 . 423 27 9 114 . 45 54 98 80 352 Melee 35 | . . . . . . . . . . . 1 6 4 6 5 . 4 . . 2 . . 1 . . . . 4 . . 2 . Projectile 232 | . . 2 . . 29 . 1 2 2 4 . 6 . . . 11 . 2 1 3 . . 8 8 9 7 . 41 35 9 36 16 AOE 1695 | . 33 107 35 10 7 53 33 62 64 34 . 12 . 52 10 20 . . . 96 41 . 414 19 . 107 . . 19 89 42 336 Terrain Rammed . | . . . . . . . . . . . . . . . . . . . . . . . . . . . . . . . . . Walls Destroyed . | . . . . . . . . . . . . . . . . . . . . . . . . . . . . . . . . . Machines Disabled . | . . . . . . . . . . . . . . . . . . . . . . . . . . . . . . . . . Actions | -11 -10 -10 -9 -9 -9 -8 -8 -8 -8 -8 -7 -7 -6 -6 -6 -6 -5 -5 -5 -5 -5 -5 -5 -5 -4 -4 -3 -3 -2 -2 -2 -1 --------- Run | Scr Mat Min Mat Min Exi Min Mat Gar Mat Gar Fac Gar Fac Gar Fac Gar Fac Was Fac Ext Cet Arc Hub Gar Fac Gar Res Qua Res Tes Sec Acc Total 23396 | 52 820 628 571 807 1684 277 654 888 163 1044 99 582 435 443 475 721 269 703 316 899 302 518 674 600 252 725 388 2619 862 1210 1861 855 Wait 1560 | . 13 6 69 14 310 7 75 6 . 44 1 6 115 24 48 11 12 45 24 25 80 168 19 22 . 15 7 101 38 177 58 20 Move 18341 | 39 728 552 434 766 1124 227 481 767 123 772 90 400 264 325 369 619 216 585 272 762 196 305 466 489 219 562 338 2230 677 841 1424 679 Hop . | . . . . . . . . . . . . . . . . . . . . . . . . . . . . . . . . . Pick Up 287 | 4 22 7 13 6 24 1 7 1 1 13 1 14 4 3 5 8 3 11 . 7 1 2 14 4 1 13 2 26 14 17 26 12 Fast Attach 193 | 7 3 . 4 . 13 2 13 . . 7 . 2 3 . . 1 4 8 . 3 5 1 8 4 4 7 1 29 7 19 29 9 Attach 147 | . 2 2 10 1 8 2 4 . . 1 2 2 4 1 5 1 3 4 . 1 . 1 10 3 2 9 4 8 3 14 23 17 Detach 78 | . 1 . . . 8 . 4 . . 1 . . 1 1 3 . 3 1 . 1 . 2 11 2 3 4 . 7 2 6 9 8 Swap 394 | . 6 17 4 3 16 3 12 12 6 9 1 17 12 10 16 11 8 3 12 32 7 7 28 9 1 14 9 22 25 23 36 3 Drop 330 | . 11 9 5 5 30 . 16 1 1 8 . 19 5 2 2 7 6 22 . 9 6 1 18 4 3 9 2 51 11 29 26 12 Fire 1526 | 2 33 35 30 4 138 35 42 86 32 48 . 34 5 16 22 37 10 24 8 45 7 12 86 49 19 83 24 126 85 67 189 93 Melee 232 | . . . . . . . . . . 16 4 36 22 21 5 12 4 . . 7 . 18 13 . . 1 . 19 . 11 41 2 Ram 2 | . . . 1 . . . . . . . . . . . . . . . . . . . . . . . 1 . . . . . Kick . | . . . . . . . . . . . . . . . . . . . . . . . . . . . . . . . . . Crush 27 | . 1 . 1 8 13 . . . . . . . . . . . . . . 3 . . 1 . . . . . . . . . Escape Stasis 154 | . . . . . . . . 15 . 29 . 25 . 40 . 14 . . . 3 . . . 14 . 8 . . . 6 . . Rewire 125 | . . . . . . . . . . 96 . 27 . . . . . . . 1 . 1 . . . . . . . . . . Trap . | . . . . . . . . . . . . . . . . . . . . . . . . . . . . . . . . . Miscellaneous . | . . . . . . . . . . . . . . . . . . . . . . . . . . . . . . . . . Route ------- -11/Scrapyard -10/Materials (discovered 4 exits: *Mat x2 / [*Min x2]) -10/Mines (discovered 2 exits: *Mat x2) -9/Materials (discovered 3 exits: *Mat / *Min x2) -9/Mines (discovered 3 exits: *Mat x2 / *Exi) -9/Exiles -8/Mines -8/Materials (discovered 4 exits: *Fac x3 / Gar) -8/Garrison (discovered 3 exits: *Mat x3) -8/Materials -8/Garrison (discovered 3 exits: *Fac x3) -7/Factory (discovered 2 exits: Sto / Gar) -7/Garrison -6/Factory -6/Garrison (discovered 2 exits: *Fac x2) -6/Factory (discovered 3 exits: Low x2 / Gar) -6/Garrison (discovered 2 exits: *Fac x2) -5/Factory -5/Waste -5/Factory (discovered 4 exits: Upp x2 / *Ext x2) -5/Extension (discovered 2 exits: *Fac / *Cet) -5/Cetus -5/Archives (discovered 3 exits: *Fac / *Hub x2) -5/Hub_04(d) (discovered 3 exits: *Fac x2 / Gar) -5/Garrison (discovered 3 exits: *Fac x3) -4/Factory -4/Garrison -3/Research -3/Quarantine -2/Research (discovered 3 exits: *Acc / *Tes x2) -2/Testing (discovered 2 exits: *Acc / *Sec) -2/Section 7 -1/Access (discovered 1 exit: Com) History --------- Turn | Location | Event 42 | -11/Scrapyard | Discovered new exit (range 15) 55 | -11/Scrapyard | Entered Materials 192 | -10/Materials | Discovered new exit (range 10) 260 | -10/Materials | Discovered new exit (range 11) 313 | -10/Materials | Build established: Mutant 351 | -10/Materials | Discovered new exit (range 8) 503 | -10/Materials | Discovered new exit (range 16) 913 | -10/Materials | Build established: Hauler-Mutant 1068 | -10/Materials | Entered Mines 1069 | -10/Mines | Assembled infested the area 1074 | -10/Mines | Assisted by a Guerilla fighting off Assembled 1076 | -10/Mines | Core integrity fell below 50% 1158 | -10/Mines | Destroyed 19 combat bots 1248 | -10/Mines | Discovered new exit (range 11) 1499 | -10/Mines | Discovered new exit (range 16) 1771 | -10/Mines | Learned location of Zion (-7) 1931 | -10/Mines | Entered Materials 1931 | -9/Materials | Evolved 2 slots: Utility x1, Weapon x1 2125 | -9/Materials | Identified exit to Mines 2384 | -9/Materials | Lost 5 parts (1n1u3w) 2519 | -9/Materials | Lost 5 parts (1p1n1u2w) 2557 | -9/Materials | Discovered new exit (range 7) 2694 | -9/Materials | Entered Mines 2701 | -9/Mines | Received a Rocket Launcher from a helpful Derelict 3022 | -9/Mines | Discovered new exit (range 15) 3256 | -9/Mines | Assisted by bots powering up and referring to "LRC-V3" 3274 | -9/Mines | Deemed a non-threat by the Exiles lab entrance 3510 | -9/Mines | Found a damaged Exp. Sensor Array with a note attached 3514 | -9/Mines | Found Prototype Device 3528 | -9/Mines | Discovered new exit (range 15) 4109 | -9/Mines | Discovered new exit (range 5) 4125 | -9/Mines | Entered Exiles 4125 | -9/Exiles | Accompanied by 3 allies 4170 | -9/Exiles | Met 8R-AWN 4199 | -9/Exiles | Met EX-HEX 4262 | -9/Exiles | Met EX-BIN 4287 | -9/Exiles | Aligned with FarCom system 4289 | -9/Exiles | Given EX-Vault access code 4332 | -9/Exiles | Opened EX-Vault 4372 | -9/Exiles | Warned to stay clear of 0b10 Research branches 4426 | -9/Exiles | Met EX-DEC 4627 | -9/Exiles | Found AWS/Gauss 5009 | -9/Exiles | Discovered new exit (range 14) 5060 | -9/Exiles | Attacked by the Exiles 5378 | -9/Exiles | Destroyed 8R-AWN 5382 | -9/Exiles | Found Prototype Ballistic Gun 5382 | -9/Exiles | Identified 8R-AWN's Boregun 5453 | -9/Exiles | Found Prototype Device 5463 | -9/Exiles | Found 8R-AWN's Boregun 5631 | -9/Exiles | Found Firepult 5632 | -9/Exiles | Identified AS-neutralizer No. 17b 5638 | -9/Exiles | Found Trap Reconfigurator 5834 | -9/Exiles | Destroyed EX-DEC 5840 | -9/Exiles | Found Deploy-a-Sentry 5874 | -9/Exiles | Destroyed EX-BIN 5892 | -9/Exiles | Destroyed EX-HEX 5903 | -9/Exiles | Found Prototype Device 5939 | -9/Exiles | Identified System Purifier 6194 | -9/Exiles | Build established: Scavenger-Mutant 6391 | -9/Exiles | Identified Exp. Sensor Array 6409 | -9/Exiles | Stole four prototypes: Trap Reconfigurator, Firepult, AWS/Gauss, Deploy-a-Sentry 6409 | -9/Exiles | Entered Mines 6495 | -8/Mines | Build established: Scavenger-Tank 6745 | -8/Mines | Lost 4 parts (1n1u2w) 6781 | -8/Mines | Discovered new exit (range 9) 6810 | -8/Mines | Entered Materials 6810 | -8/Materials | Evolved 2 slots: Propulsion x1, Utility x1 6811 | -8/Materials | Identified exit to Factory 6905 | -8/Materials | Build established: Hauler-Mutant 7241 | -8/Materials | Discovered exit to Factory (range 16) 7693 | -8/Materials | Discovered exit to Factory (range 12) 7754 | -8/Materials | Repaired Exp. Heat Sink 7816 | -8/Materials | Identified exit to Garrison 7818 | -8/Materials | Entered Garrison 7910 | -8/Garrison | Triggered checkpoint 7957 | -8/Garrison | Triggered checkpoint 8014 | -8/Garrison | Destroyed 12 combat bots 8040 | -8/Garrison | Discovered new exit (range 10) 8181 | -8/Garrison | Discovered new exit (range 13) 8208 | -8/Garrison | Installed Relay Interface Framework 8263 | -8/Garrison | Build established: Hauler-Tank 8392 | -8/Garrison | Triggered checkpoint 8430 | -8/Garrison | Garrison Relay disabled 8874 | -8/Garrison | Build established: Hauler-Mutant 9022 | -8/Garrison | Triggered checkpoint 9048 | -8/Garrison | Garrison Relay disabled 9127 | -8/Garrison | Triggered checkpoint 9149 | -8/Garrison | Discovered new exit (range 14) 9270 | -8/Garrison | Entered Materials 9340 | -8/Materials | Garrison activated, responded to threat 9568 | -8/Materials | Identified exit to Garrison 9568 | -8/Materials | Entered Garrison 9577 | -8/Garrison | Build established: Hauler-Tank 9632 | -8/Garrison | Triggered checkpoint 9681 | -8/Garrison | Triggered checkpoint 9762 | -8/Garrison | Discovered exit to Factory (range 10) 9916 | -8/Garrison | Discovered exit to Factory (range 15) 9933 | -8/Garrison | Build established: Hauler-Mutant 10016 | -8/Garrison | Triggered checkpoint 10141 | -8/Garrison | Discovered exit to Factory (range 12) 10161 | -8/Garrison | Expanded RIF knowledge: Patrol Navigation 10378 | -8/Garrison | Build established: Scavenger-Mutant 10748 | -8/Garrison | Triggered checkpoint 10792 | -8/Garrison | Garrison Relay disabled 10908 | -8/Garrison | Entered Factory 10908 | -7/Factory | Accompanied by 6 allies 10908 | -7/Factory | Evolved 2 slots: Utility x2 10909 | -7/Factory | Identified exit to Storage 11032 | -7/Factory | Identified exit to Garrison 11032 | -7/Factory | Entered Garrison 11032 | -7/Garrison | Accompanied by 6 allies 11041 | -7/Garrison | Expanded RIF knowledge: Signal Jamming 11055 | -7/Garrison | Triggered checkpoint 11061 | -7/Garrison | Triggered checkpoint 11086 | -7/Garrison | Garrison Relay disabled 11152 | -7/Garrison | Triggered checkpoint 11246 | -7/Garrison | Destroyed 8 combat bots 11761 | -7/Garrison | Discovered new exit (range 10) 11771 | -7/Garrison | Identified exit to Factory 11778 | -7/Garrison | Entered Factory 11778 | -6/Factory | Accompanied by 6 allies 11778 | -6/Factory | Evolved 2 slots: Propulsion x1, Utility x1 12005 | -6/Factory | Fabricated Tiamat Missile Launcher (x1) 12135 | -6/Factory | Fabricated Tiamat Missile Launcher (x1) 12173 | -6/Factory | Local fabrication network quarantined 12186 | -6/Factory | Build established: Bothacker-Mutant 12282 | -6/Factory | Identified exit to Garrison 12282 | -6/Factory | Entered Garrison 12282 | -6/Garrison | Accompanied by 3 allies 12336 | -6/Garrison | Triggered checkpoint 12358 | -6/Garrison | Garrison Relay disabled 12432 | -6/Garrison | Triggered checkpoint 12434 | -6/Garrison | Triggered checkpoint 12459 | -6/Garrison | Destroyed 11 combat bots 12532 | -6/Garrison | Discovered new exit (range 15) 12643 | -6/Garrison | Discovered new exit (range 14) 12659 | -6/Garrison | Identified exit to Factory 12667 | -6/Garrison | Expanded RIF knowledge: Hotswap 12690 | -6/Garrison | Triggered checkpoint 12717 | -6/Garrison | Garrison Relay disabled 12804 | -6/Garrison | Entered Factory 12804 | -6/Factory | Accompanied by 1 ally 12840 | -6/Factory | Identified exit to Lower Caves 12960 | -6/Factory | Build established: Botlord-Mutant 13351 | -6/Factory | Identified exit to Garrison 13358 | -6/Factory | Entered Garrison 13358 | -6/Garrison | Accompanied by 1 ally 13429 | -6/Garrison | Triggered checkpoint 13447 | -6/Garrison | Garrison Relay disabled 13553 | -6/Garrison | Triggered checkpoint 13692 | -6/Garrison | Discovered new exit (range 15) 13796 | -6/Garrison | Discovered new exit (range 12) 13808 | -6/Garrison | Identified exit to Factory 13818 | -6/Garrison | Expanded RIF knowledge: Structural Interface 13978 | -6/Garrison | Triggered checkpoint 14020 | -6/Garrison | Garrison Relay disabled 14114 | -6/Garrison | Triggered checkpoint 14155 | -6/Garrison | Garrison Relay disabled 14207 | -6/Garrison | Entered Factory 14207 | -5/Factory | Evolved 2 slots: Utility x2 14282 | -5/Factory | Discovered new exit (range 113) 14511 | -5/Factory | Sucked down chute 14511 | -5/Factory | Entered Waste 14512 | -5/Waste | Met a frightened Derelict 14528 | -5/Waste | Spotted C-40 Crusher 14539 | -5/Waste | Destroyed C-40 Crusher 14556 | -5/Waste | Destroyed C-40 Crusher 14559 | -5/Waste | Destroyed C-40 Crusher 14561 | -5/Waste | Spotted C-40 Crusher 14568 | -5/Waste | Allies destroyed C-40 Crusher 14571 | -5/Waste | Found Unknown Protection 14576 | -5/Waste | Spotted C-40 Crusher 14590 | -5/Waste | Spotted C-40 Crusher 14597 | -5/Waste | Destroyed C-40 Crusher 14601 | -5/Waste | Destroyed C-40 Crusher 14730 | -5/Waste | Discovered new exit (range 12) 14790 | -5/Waste | Identified Damper Plating 14877 | -5/Waste | Found Damper Plating 14894 | -5/Waste | Found Damper Plating 15260 | -5/Waste | Warlord forces began an assault 15314 | -5/Waste | Identified exit to Factory 15359 | -5/Waste | Entered Factory 15359 | -5/Factory | Accompanied by 19 allies 15414 | -5/Factory | Build established: Bothacker-Mutant 15529 | -5/Factory | Identified exit to Upper Caves 15529 | -5/Factory | Identified exit to Extension 15852 | -5/Factory | Entered Extension 15852 | -5/Extension | Accompanied by 9 allies 15994 | -5/Extension | Rescued a captive Derelict 16141 | -5/Extension | Rescued A7 16204 | -5/Extension | Rescued a captive Derelict 16205 | -5/Extension | Rescued a captive Derelict 16425 | -5/Extension | Disrupted transfer network 16652 | -5/Extension | Spotted B-75 Beast 16668 | -5/Extension | Allies destroyed B-75 Beast 16669 | -5/Extension | Spotted B-75 Beast 16693 | -5/Extension | Destroyed B-75 Beast 16752 | -5/Extension | First assault squad dispatched 16792 | -5/Extension | Rescued a captive Derelict 16852 | -5/Extension | Found Prototype Launcher 16852 | -5/Extension | Identified Mni. Smartbomb Launcher 16873 | -5/Extension | Door terminal overloaded 16874 | -5/Extension | Rescued a captive Derelict 16874 | -5/Extension | Rescued a captive Derelict 17106 | -5/Extension | Discovered new exit (range 16) 17108 | -5/Extension | Discovered new exit (range 15) 17129 | -5/Extension | Identified exit to Cetus 17206 | -5/Extension | Rescued a captive Derelict 17275 | -5/Extension | Entered Cetus 17275 | -5/Cetus | Accompanied by 5 allies (A7) 17280 | -5/Cetus | Acquired a Cetus Manufacturing Module code from A7 17301 | -5/Cetus | Spotted Cetus Guard 17301 | -5/Cetus | Spotted Cetus Guard 17303 | -5/Cetus | Spotted Cetus Guard 17304 | -5/Cetus | Destroyed Cetus Guard 17304 | -5/Cetus | Spotted Cetus Guard 17312 | -5/Cetus | Allies destroyed Cetus Guard 17314 | -5/Cetus | Allies destroyed Cetus Guard 17321 | -5/Cetus | Destroyed Cetus Guard 17413 | -5/Cetus | Started Cetus Manufacturing Module 17438 | -5/Cetus | Manufactured an Enhanced Grunt 17463 | -5/Cetus | Manufactured an Enhanced Grunt 17488 | -5/Cetus | Manufactured an Enhanced Grunt 17513 | -5/Cetus | Manufactured an Enhanced Grunt 17538 | -5/Cetus | Manufactured an Enhanced Grunt 17555 | -5/Cetus | Discovered new exit (range 15) 17696 | -5/Cetus | Identified exit to Archives 17708 | -5/Cetus | Entered Archives 17708 | -5/Archives | Accompanied by 9 allies (A7) 17817 | -5/Archives | Discovered new exit (range 16) 17879 | -5/Archives | Discovered new exit (range 15) 18065 | -5/Archives | Build established: Scavenger-Mutant 18117 | -5/Archives | Discovered new exit (range 16) 18205 | -5/Archives | Identified exit to Hub_04(d) 19071 | -5/Archives | Entered Hub_04(d) 19071 | -5/Hub_04(d) | Accompanied by 8 allies 19223 | -5/Hub_04(d) | Discovered new exit (range 22) 19620 | -5/Hub_04(d) | Network Hub disabled 19624 | -5/Hub_04(d) | Spotted Lightning 19624 | -5/Hub_04(d) | Spotted Lightning 19627 | -5/Hub_04(d) | Spotted Lightning 19629 | -5/Hub_04(d) | Spotted Lightning 19631 | -5/Hub_04(d) | Spotted Lightning 19633 | -5/Hub_04(d) | Spotted Lightning 19634 | -5/Hub_04(d) | Destroyed Lightning 19635 | -5/Hub_04(d) | Spotted Lightning 19637 | -5/Hub_04(d) | Spotted Lightning 19637 | -5/Hub_04(d) | Destroyed Lightning 19640 | -5/Hub_04(d) | Spotted Lightning 19642 | -5/Hub_04(d) | Spotted Lightning 19643 | -5/Hub_04(d) | Spotted Lightning 19646 | -5/Hub_04(d) | Spotted Lightning 19652 | -5/Hub_04(d) | Destroyed Lightning 19655 | -5/Hub_04(d) | Destroyed Lightning 19674 | -5/Hub_04(d) | Destroyed Lightning 19686 | -5/Hub_04(d) | Destroyed Lightning 19691 | -5/Hub_04(d) | Destroyed Lightning 19693 | -5/Hub_04(d) | Destroyed Lightning 19695 | -5/Hub_04(d) | Destroyed Lightning 19716 | -5/Hub_04(d) | Destroyed Lightning 19723 | -5/Hub_04(d) | Garrison activated, responded to threat 19727 | -5/Hub_04(d) | Destroyed Lightning 19746 | -5/Hub_04(d) | Destroyed Lightning 19776 | -5/Hub_04(d) | Found Prototype Energy Cannon 19776 | -5/Hub_04(d) | Identified EMDS 19777 | -5/Hub_04(d) | Destroyed 19 combat bots 19785 | -5/Hub_04(d) | Found Prototype Processor 19785 | -5/Hub_04(d) | Identified Exp. Targeting Computer 19789 | -5/Hub_04(d) | Found Prototype Device 19789 | -5/Hub_04(d) | Identified EM Dispersion Field 19793 | -5/Hub_04(d) | Found EMDS 19803 | -5/Hub_04(d) | Found EMDS 19834 | -5/Hub_04(d) | Found Prototype Device 19834 | -5/Hub_04(d) | Identified Exp. Phase Shifter 19839 | -5/Hub_04(d) | Found Exp. Targeting Computer 19925 | -5/Hub_04(d) | Discovered new exit (range 15) 19971 | -5/Hub_04(d) | First assault squad dispatched 20042 | -5/Hub_04(d) | Network Hub disabled 20157 | -5/Hub_04(d) | Found EMDS 20165 | -5/Hub_04(d) | Found EM Dispersion Field 20169 | -5/Hub_04(d) | Found Exp. Phase Shifter 20197 | -5/Hub_04(d) | Identified exit to Garrison 20197 | -5/Hub_04(d) | Entered Garrison 20209 | -5/Garrison | Triggered checkpoint 20484 | -5/Garrison | Spotted B-75 Beast 20498 | -5/Garrison | Build established: Scavenger-Tank 20711 | -5/Garrison | Destroyed B-75 Beast 20711 | -5/Garrison | Triggered checkpoint 20818 | -5/Garrison | Discovered new exit (range 10) 20832 | -5/Garrison | Identified exit to Factory 20895 | -5/Garrison | Triggered checkpoint 21024 | -5/Garrison | Discovered exit to Factory (range 10) 21215 | -5/Garrison | Discovered exit to Factory (range 15) 21251 | -5/Garrison | Expanded RIF knowledge: Program Shield 21262 | -5/Garrison | Entered Factory 21262 | -4/Factory | Evolved 2 slots: Power x1, Utility x1 21716 | -4/Factory | Identified exit to Garrison 21716 | -4/Factory | Entered Garrison 21725 | -4/Garrison | Expanded RIF knowledge: Watcher Feeds 21809 | -4/Garrison | Phase Generator disabled 21830 | -4/Garrison | Build established: Scavenger-Mutant 21858 | -4/Garrison | Triggered checkpoint 21897 | -4/Garrison | Garrison Relay disabled 22074 | -4/Garrison | Triggered checkpoint 22116 | -4/Garrison | Destroyed B-86 Titan 22137 | -4/Garrison | Triggered checkpoint 22229 | -4/Garrison | Triggered checkpoint 22272 | -4/Garrison | Triggered checkpoint 22340 | -4/Garrison | Lost 5 parts (1p1n1u2w) 22542 | -4/Garrison | Spotted B-86 Titan 22645 | -4/Garrison | Discovered new exit (range 5) 22670 | -4/Garrison | Triggered checkpoint 22680 | -4/Garrison | Garrison Relay disabled 22743 | -4/Garrison | Build established: Botlord-Mutant 22789 | -4/Garrison | Identified exit to Research 22790 | -4/Garrison | Entered Research 22790 | -3/Research | Evolved 2 slots: Utility x1, Weapon x1 22888 | -3/Research | Discovered new exit (range 15) 22910 | -3/Research | Identified exit to Quarantine 23040 | -3/Research | First assault squad dispatched 23277 | -3/Research | System corruption reached 10% 23290 | -3/Research | Entered Quarantine 23699 | -3/Quarantine | Found Alien Artifact 23699 | -3/Quarantine | Identified Phase Redirector 24027 | -3/Quarantine | Found Hpw. Transdimensional Reconstructor 24030 | -3/Quarantine | Found Hpw. Transdimensional Reconstructor 24033 | -3/Quarantine | Found Hpw. Transdimensional Reconstructor 24103 | -3/Quarantine | Cryocooling Duct disabled 24103 | -3/Quarantine | Cryocooling Duct disabled 24118 | -3/Quarantine | Ambient heat levels rising (+40) 24118 | -3/Quarantine | Non-combat units ordered to evacuate 24118 | -3/Quarantine | Combat units ordered to evacuate 24166 | -3/Quarantine | Discovered new exit (range 13) 24218 | -3/Quarantine | Quarantine Guard activated 24218 | -3/Quarantine | Spotted Quarantine Guard 24219 | -3/Quarantine | Spotted Quarantine Guard 24219 | -3/Quarantine | Spotted Quarantine Guard 24220 | -3/Quarantine | Spotted Quarantine Guard 24222 | -3/Quarantine | Spotted Quarantine Guard 24224 | -3/Quarantine | Spotted Quarantine Guard 24267 | -3/Quarantine | Destroyed Quarantine Guard 24286 | -3/Quarantine | Identified exit to Research 24297 | -3/Quarantine | Found Core Cannon 24380 | -3/Quarantine | Spotted Quarantine Guard 24426 | -3/Quarantine | Destroyed Quarantine Guard 24455 | -3/Quarantine | Found Alien Artifact 24455 | -3/Quarantine | Identified Subatomic Replicator 24476 | -3/Quarantine | Spotted Quarantine Guard 24532 | -3/Quarantine | Destroyed Quarantine Guard 24560 | -3/Quarantine | Destroyed Quarantine Guard 24665 | -3/Quarantine | Destroyed Quarantine Guard 24668 | -3/Quarantine | Destroyed Quarantine Guard 24823 | -3/Quarantine | Destroyed Quarantine Guard 24824 | -3/Quarantine | Spotted Quarantine Guard 24840 | -3/Quarantine | Destroyed Quarantine Guard 25054 | -3/Quarantine | Destroyed Quarantine Guard 25124 | -3/Quarantine | Spotted Alpha 7 25287 | -3/Quarantine | Destroyed Alpha 7 25296 | -3/Quarantine | Found Prototype Processor 25296 | -3/Quarantine | Identified Exp. Target Analyzer 25299 | -3/Quarantine | Found Prototype Device 25299 | -3/Quarantine | Identified Exp. ECM Suite 25308 | -3/Quarantine | Found Unknown Device 25308 | -3/Quarantine | Identified Antimissile System 25347 | -3/Quarantine | Found Alien Launcher 25347 | -3/Quarantine | Identified Sigix Terminator 25567 | -3/Quarantine | Destroyed Quarantine Guard 25602 | -3/Quarantine | Destroyed Quarantine Guard 25802 | -3/Quarantine | Found Hpw. Transdimensional Reconstructor 25860 | -3/Quarantine | Build established: Scavenger-Tank 25879 | -3/Quarantine | Found Alien Artifact 25879 | -3/Quarantine | Identified Stasis Generator 25954 | -3/Quarantine | Spotted Quarantine Guard 25960 | -3/Quarantine | Destroyed Quarantine Guard 26854 | -3/Quarantine | Entered Research 26854 | -2/Research | Evolved 2 slots: Utility x2 27160 | -2/Research | Build established: Scavenger-Mutant 27254 | -2/Research | Identified exit to Testing 27799 | -2/Research | Repaired Hcp. Storage Unit 28038 | -2/Research | Discovered new exit (range 8) 28063 | -2/Research | Identified exit to Access 28155 | -2/Research | Crushed by falling debris 28302 | -2/Research | Entered Testing 28759 | -2/Testing | Found Prototype Slashing Weapon 28759 | -2/Testing | Identified Nanosword 28889 | -2/Testing | Found Prototype Energy Cannon 28889 | -2/Testing | Identified Null Cannon 29175 | -2/Testing | Discovered exit to Access (range 5) 29213 | -2/Testing | Protovariant out of control (PD-ACXNSB7NGS) 29213 | -2/Testing | Unleashed a protovariant (PD-ACXNSB7NGS) 29220 | -2/Testing | Scanned by Researcher 29221 | -2/Testing | Spotted Investigator 29225 | -2/Testing | Destroyed Investigator 29276 | -2/Testing | Build established: Botlord-Mutant 29293 | -2/Testing | Destroyed 9 combat bots 29395 | -2/Testing | Found Prototype Device 29395 | -2/Testing | Identified Exp. Hardlight Generator 29459 | -2/Testing | Found Prototype Launcher 29459 | -2/Testing | Identified Z-bomb Delivery System 29552 | -2/Testing | First assault squad dispatched 29703 | -2/Testing | Found Prototype Protection 29703 | -2/Testing | Identified SHELL Armor 29823 | -2/Testing | Warped through subspace 29957 | -2/Testing | Spotted Fortress 30066 | -2/Testing | Build established: Scavenger-Skirmisher 30079 | -2/Testing | Discovered new exit (range 6) 30086 | -2/Testing | Identified exit to Section 7 30166 | -2/Testing | Entered Section 7 30190 | -2/Section 7 | Found Alien Artifact 30190 | -2/Section 7 | Identified Integrity Redistributor 30190 | -2/Section 7 | Used Integrity Redistributor, redistributed integrity from core (-261) 30475 | -2/Section 7 | Build established: Scavenger-Mutant 30691 | -2/Section 7 | Spotted B-90 Cyclops 30768 | -2/Section 7 | Spotted S7 Guard 30785 | -2/Section 7 | Destroyed 9 combat bots 30790 | -2/Section 7 | Destroyed S7 Guard 30823 | -2/Section 7 | Found Alien Artifact 30823 | -2/Section 7 | Identified Integrated Heat Negator 30823 | -2/Section 7 | Installed Integrated Heat Negator, increased core heat dissipation (+40) 30916 | -2/Section 7 | Repaired Adv. Sensor Array 31022 | -2/Section 7 | Core integrity fell below 50% 31166 | -2/Section 7 | First assault squad dispatched 31222 | -2/Section 7 | Found Integrity Redistributor 31403 | -2/Section 7 | Spotted Executioner 31403 | -2/Section 7 | Spotted Executioner 31412 | -2/Section 7 | Destroyed Executioner 31417 | -2/Section 7 | Destroyed Executioner 31440 | -2/Section 7 | Found Prototype Device 31440 | -2/Section 7 | Identified Adv. Kinecellerator 31518 | -2/Section 7 | Spotted B-99 Colossus 31622 | -2/Section 7 | Destroyed B-99 Colossus 31634 | -2/Section 7 | Used Subatomic Replicator to replicate Integrity Redistributor 31635 | -2/Section 7 | Used Integrity Redistributor, redistributed integrity to core (+196) 31670 | -2/Section 7 | Lost 3 parts (1n1u1w) 31676 | -2/Section 7 | Found Alien Artifact 31676 | -2/Section 7 | Identified Integrated Reactor 31676 | -2/Section 7 | Installed Integrated Reactor, increased core energy generation (+10) 31679 | -2/Section 7 | Found Integrated Reactor 31679 | -2/Section 7 | Installed Integrated Reactor, increased core energy generation (+10) 31749 | -2/Section 7 | Found Alien Artifact 31749 | -2/Section 7 | Identified LRC Boosters 31749 | -2/Section 7 | Installed LRC Boosters, increased mass support (+10) 32360 | -2/Section 7 | Found Alien Artifact 32360 | -2/Section 7 | Identified Integrated Dissipator 32360 | -2/Section 7 | Installed Integrated Dissipator, increased core heat dissipation (+20) 32387 | -2/Section 7 | Found Integrity Redistributor 32579 | -2/Section 7 | Spotted B-90 Cyclops 32613 | -2/Section 7 | Warped through subspace 32614 | -2/Section 7 | Warped through subspace 32660 | -2/Section 7 | Spotted Executioner 32661 | -2/Section 7 | Spotted Executioner 32669 | -2/Section 7 | Destroyed Executioner 32677 | -2/Section 7 | Destroyed Executioner 32739 | -2/Section 7 | Spotted Striker 32741 | -2/Section 7 | Spotted Striker 32859 | -2/Section 7 | Found Alien Artifact 32859 | -2/Section 7 | Identified Transdimensional Reconstructor 32859 | -2/Section 7 | Warped through subspace 32890 | -2/Section 7 | Found Alien Artifact 32893 | -2/Section 7 | Found Alien Artifact 32896 | -2/Section 7 | Found Alien Artifact 33150 | -2/Section 7 | Discovered exit to Access (range 16) 33170 | -2/Section 7 | Entered Access 33170 | -1/Access | Evolved 2 slots: Propulsion x1, Utility x1 33176 | -1/Access | Used Integrity Redistributor, redistributed integrity from core (-360) 33199 | -1/Access | Lost 4 parts (1n1u2w) 33420 | -1/Access | First assault squad dispatched 33587 | -1/Access | Destroyed 9 combat bots 33929 | -1/Access | Identified Terrabomb (x2) 33929 | -1/Access | Used Terrabomb 33970 | -1/Access | Identified exit to Command 34052 | -1/Access | Destroyed 11 combat bots 34266 | -1/Access | Fabricated Adv. Armor Integrity Analyzer? 34275 | -1/Access | Spotted B-99 Colossus 34337 | -1/Access | Used Terrabomb 34337 | -1/Access | Spotted B-99 Colossus 34338 | -1/Access | Used Integrity Redistributor, redistributed integrity from core (-126) 34345 | -1/Access | Released all parts (17) 34350 | -1/Access | Fired Sigix Terminator 34351 | -1/Access | Core integrity fell below 50% 34356 | -1/Access | Core integrity fell below 20% 34361 | -1/Access | Destroyed by S-43 Plague with Heavy Machine Gun Last Messages --------------- 34346_ Slug penetrates Door. 34349_ Acquired Z-bomb Delivery System. 34350_ Sigix Terminator expended. 34350_ SHELL Armor destroyed. 34350_ Destroyed SHELL Armor. 34350_ Wave Collapse Detector explodes. 34352_ Knocked back. 34352_ Penetrated by Slug. 34353_ B-99 Colossus activates siege mode. 34353_ The unstable cave ceiling collapses. 34353_ Enh. Biometal Leg crushed. 34354_ CITOQRUCF 34358_ The unstable cave ceiling collapses. 34359_ Knocked back. 34359_ Core Cannon destroyed. 34359_ Penetrated by Slug. 34360_ Destroyed Unknown Device. [Achievement: Rambo] Map ----- +----------------------------------------------------+ | ####### #### ######/" ????????????????????? | | #?# #??# ## " "???????????????????? | | #?# #??# "" " """""? ????????????? | | #?# #??# "" " """""" " ??????????? | | #?# #??# "" """"""""""""+" ????????? | | " #?# #??# "" " " " ???????? | | """ #?# #??# "" " " """""???????? | | """ #?# #?## "" " " " ??????? | | """"#?# #?#" "" " " " ??????? | | """ #?# ###" """"""/""""" ?????? | | " ???# ## " """"""?????? | | ??# ## " ?????? | | #?# ## " ????? | | #####?# ## " w ????? | | ??????# ## "";;;; # ! ???? | | ####### ##""";;; !! "????? | | # # "????? | | # # " ""?????? | | """" # # """"???? | | """" # # !!! # ; "" ? | | "!F" # # !! "" ? | | # # !! = ??????? | | + + ?????? | | # # ""?????? | | ####### # ??????? | | ??????#+#####; @ ??????? | | ????? ; BB ???????? | | ???# ; BB ???????? | | ???# ; BB #???????? | | ???# ; BB #???????? | | ???# # #???????? | | ???# # "#???????? | | ???# # ?????????? | | ???# ## ??????????? | | ???############ ??????????? | | ??????????????# ???????????? | | ??????????????## ???????????? | | ???????????????? ; ?????????????? | | ?????????????????? ; ???????????????? | | ????????????????????? "??????????????????? | | ??????????????????????? ????????????????????? | | ?????????????????????????????????????????????????? | | ?????????????????????????????????????????????????? | | ?????????????????????????????????????????????????? | | ?????????????????????????????????????????????????? | | ?????????????????????????????????????????????????? | | ?????????????????????????????????????????????????? | | ?????????????????????????????????????????????????? | | ?????????????????????????????????????????????????? | | ?????????????????????????????????????????????????? | +----------------------------------------------------+ Best States ------------- Heat Dissipation 140 Coolant Potential 120 Energy Generation 69 Energy Capacity 920 Matter Stores 550 Matter Capacity 700 Sight Range 23 Robot Scan Range 30 Terrain Scan Density 10 ECM Strength 5 Armor Coverage 2400 Resistance: EM 90 Point Defense Rating 240 Weapon Cycling 25 Phase Shifting 20 Evasion (%) 60 Targeting Accuracy 12 Armor Integrity Analysis 66 Recoil Reduction 4 Matter Filtering 30 Particle Charging 15 Salvage Targeting 1 Offensive Hacking 36 Defensive Hacking 12 Relay Coupler Types 76 Relay Coupler Value 3 Item Schematics ----------------- Lrg. Storage Unit | -10/Materials | Hacked Adv. Armor Integrity Analyzer | -2/Testing | Hacked Robot Schematics ------------------ None Fabricated ------------ Tiamat Missile Launcher | x1 | -6/Factory | Preloaded Tiamat Missile Launcher | x1 | -6/Factory | Preloaded Adv. Armor Integrity Analyzer | x1 | -1/Access Alien Tech Used ----------------- Phase Redirector Subatomic Replicator Core Cannon Sigix Terminator Stasis Generator High-powered Transdimensional Reconstructor Integrity Redistributor Integrated Heat Negator Integrated Reactor LRC Boosters Integrated Dissipator Transdimensional Reconstructor Terrabomb Achievements -------------- Just Shoot The Terminal Rambo Challenges ------------ None Game ------ Seed SuperchargedHeartRifle Manual? 0 Play Time 05:51:34 Cumulative 189.0 hours Start 2020.12.05 @ 18:38:23 End 2020.12.14 @ 20:34:42 Sessions 7 Manual Loads 0 Difficulty Rogue Special Mode None Game No. 60 Rogue 45 Adventurer 15 Explorer 0 Win Type - Total 5 Types 2/0/1/1/1/0/0/0/0 Lore% 82 Gallery% 82 Achievement% 69 Wizard Run 0 Options --------- ASCII 0 Keyboard 0 Movement Numpad Keybinds 0 Fullscreen 1 Font 18/SmallcapsGlow Map View 76x50 Tactical HUD 1 Map Filters NONE Filters NONE Steam 1 RUN: 7611782f-b804-459f-a8a7-9fd61d9b6ba6